{"text_format":"1","workbook":"xlsx","n_sheets":19,"sheets":["入賞者一覧","40","44","48","52","57","63","70","+70","50","55","60","66","73","81","90","+90","結果入力","記号"],"not_rendered":{"charts":0,"images":8,"macros":1,"external_links":3,"defined_names":20,"comments":1,"pivot_tables":0},"unopened":[],"bounds":{"document_bytes":16777216,"sheet_cells":100000,"rows_first":2000,"rows_last":500,"rows_between":2000,"halvings":0,"cell_chars":16384,"cell_head_chars":4096},"cells_cut":0,"cells_raw":0,"read":"whole","date_system":"1900"}

{"sheet":"入賞者一覧","index":0,"n_rows":43,"n_cols":10,"rows_kept":43,"cut":false,"hidden":false,"merged":[[42,6,42,9],[37,2,38,2],[29,9,30,9],[31,6,32,6],[29,2,30,2],[31,9,32,9],[35,3,36,3],[29,3,30,3],[39,1,40,1],[37,3,38,3],[37,1,38,1],[39,2,40,2],[39,3,40,3],[39,8,40,8],[39,9,40,9],[37,4,38,4],[37,5,38,5],[37,6,38,6],[39,6,40,6],[39,7,40,7],[37,9,38,9],[39,4,40,4],[39,5,40,5],[37,7,38,7],[37,8,38,8],[31,1,32,1],[33,1,34,1],[35,1,36,1],[29,11,30,11],[33,2,34,2],[33,3,34,3],[31,8,32,8],[35,6,36,6],[35,7,36,7],[35,8,36,8],[31,7,32,7],[35,4,36,4],[35,5,36,5],[35,2,36,2],[35,9,36,9],[31,2,32,2],[31,3,32,3],[25,4,26,4],[27,8,28,8],[33,4,34,4],[33,5,34,5],[29,4,30,4],[33,8,34,8],[33,9,34,9],[33,6,34,6],[33,7,34,7],[25,9,26,9],[27,7,28,7],[25,5,26,5],[25,7,26,7],[25,8,26,8],[31,4,32,4],[27,4,28,4],[29,5,30,5],[31,5,32,5],[27,5,28,5],[15,1,16,1],[17,1,18,1],[19,1,20,1],[21,1,22,1],[15,2,16,2],[25,1,26,1],[29,1,30,1],[15,3,16,3],[19,2,20,2],[19,3,20,3],[17,2,18,2],[21,2,22,2],[21,3,22,3],[17,3,18,3],[27,1,28,1],[27,2,28,2],[27,3,28,3],[25,2,26,2],[25,3,26,3],[15,4,16,4],[15,5,16,5],[15,6,16,6],[15,7,16,7],[11,2,12,2],[7,1,8,1],[9,1,10,1],[7,3,8,3],[7,4,8,4],[7,5,8,5],[7,6,8,6],[11,1,12,1],[13,1,14,1],[11,3,12,3],[11,4,12,4],[11,5,12,5],[11,6,12,6],[11,7,12,7],[13,2,14,2],[13,3,14,3],[13,4,14,4],[13,5,14,5],[13,6,14,6],[13,7,14,7],[7,9,8,9],[9,9,10,9],[9,2,10,2],[9,3,10,3],[9,4,10,4],[9,5,10,5],[9,6,10,6],[9,7,10,7],[7,2,8,2],[7,7,8,7],[9,8,10,8],[7,8,8,8],[17,4,18,4],[17,5,18,5],[19,6,20,6],[17,6,18,6],[19,4,20,4],[19,5,20,5],[19,7,20,7],[17,7,18,7],[21,6,22,6],[21,7,22,7],[21,4,22,4],[21,5,22,5],[21,8,22,8],[21,9,22,9],[27,9,28,9],[29,6,30,6],[29,7,30,7],[29,8,30,8],[27,6,28,6],[25,6,26,6],[11,9,12,9],[19,8,20,8],[13,8,14,8],[13,9,14,9],[15,8,16,8],[15,9,16,9],[11,8,12,8],[17,8,18,8],[17,9,18,9],[19,9,20,9]]}
[]
[null,"平成３０年度西三河中学校強化選手選考会　結果一覧"]
[]
[null,"１．日時","平成３０年１１月１０日（土）"]
[null,"２．場所","刈谷市体育館"]
[]
[null,"男子","１位",null,"２位",null,"３位",null,"３位"]
[null,"50kg級","神谷　至恩","(岡崎東海)","栗田　真杜","(竜北)","髙橋　遥瑠大","(矢作北)","原田　彪雅","(葵)"]
[]
[null,"55kg級","天神　琉陽","(明祥)","鵜生川　道覇","(平坂)","作田　晴空","(愛教附岡崎)","井上　竜汰","(逢妻)"]
[]
[null,"60kg級","中村　響","(みよし北)","森山　旺人","(矢作)","リズキ　アブディラ","(西尾)","福士　幸矢","(高岡)"]
[]
[null,"66kg級","竹市　裕亮","(岡崎東海)","下地　海斗","(高岡)","山田　寛大","(高岡)","糟谷　勇輝","(三好丘)"]
[]
[null,"73kg級","山田　結大","(一色)","西村　賢","(甲山)","山本　直輝","(みよし北)","望月 ジョナタン","(平坂)"]
[]
[null,"81kg級","上田　紘平","(みよし北)","中根　嵩人","(西尾)","平本　瑠唯","(高岡)"]
[]
[null,"90kg級","湧田  カシオ","(平坂)"]
[]
[null,"90kg超級","大迫　ルーカス","(西尾)","山口　倫","(吉良)","中島　悠希","(高浜南)","福田　暁","(矢作)"]
[]
[]
[null,"女子","１位",null,"２位",null,"３位",null,"３位"]
[null,"40kg級","町田　安里花","（高岡）","庄屋　未来","（矢作）","阿部　樹","（矢作）","竹之内　美里","（西尾）"]
[]
[null,"44kg級","黒木　悠里","（矢作）","永田　暖奈","（平坂）","永野　優稀","（藤岡）","池田　羽美","（竜北）"]
[]
[null,"48kg級","菊池　律杏","（美里）","上條　恵美","（高岡）","岩月　星那","（吉良）","黒木　唯花","（矢作）"]
[]
[null,"52kg級","俊　玲衣香","（矢作）","佐々木　鈴","(甲山）","神田　姫居","（安城南）","都築　文音","（高岡）"]
[]
[null,"57kg級","榊原　共笑","（一色）","山内　亜友那","（依佐美）","村松　由貴乃","（一色）","鈴木　愛梨","（一色）"]
[]
[null,"63kg級","榊原　美月","(甲山）","中嶋　梨琴","（吉良）","岡田　葵","（一色）","戸澤　彩女","(甲山）"]
[]
[null,"70kg級","寺部　奈緒美","（みよし北）"]
[]
[null,"70kg超級","岡田　彩花","（一色）"]
[]
[]
[null,null,null,null,null,null,"報告者：岡崎市立矢作中学校　淺川晶紀　"]

{"sheet":"40","index":1,"n_rows":14,"n_cols":25,"rows_kept":14,"cut":false,"hidden":false,"merged":[[12,21,13,21],[12,22,13,22],[12,23,13,23],[12,24,13,24],[12,2,13,2],[12,3,13,3],[12,4,13,4],[12,5,13,5],[12,6,13,6],[8,24,9,24],[10,2,11,2],[10,3,11,3],[10,4,11,4],[10,5,11,5],[10,6,11,6],[10,21,11,21],[10,22,11,22],[10,23,11,23],[10,24,11,24],[8,2,9,2],[8,3,9,3],[8,4,9,4],[8,5,9,5],[8,6,9,6],[4,21,5,21],[4,22,5,22],[4,23,5,23],[8,21,9,21],[8,22,9,22],[8,23,9,23],[4,24,5,24],[6,2,7,2],[6,3,7,3],[6,4,7,4],[6,5,7,5],[6,6,7,6],[6,21,7,21],[6,22,7,22],[6,23,7,23],[6,24,7,24],[3,9,3,18],[4,2,5,2],[4,3,5,3],[4,4,5,4],[4,5,5,5],[4,6,5,6]]}
[null,null,null,null,null,null,null,null,null,null,null,null,null,null,null,null,null,null,null,null,null,null,null,null,"西三河中学校強化選手選考会"]
[null,null,null,null,null,null,null,null,null,null,null,null,null,null,null,null,null,null,null,null,null,null,null,null,"平成３０年1１月１０日"]
[null,null,null,null,null,null,null,null,null,null,null,null,null,null,null,null,null,null,null,null,null,null,null,null,"刈谷市武道館"]
[null,null,null,"女子４０ｋｇ級",null,null,null,null,null,"第5試合会場"]
[null,null,null,1,"町田　安里花","（高岡）",null,null,null,null,null,null,null,null,null,null,null,null,null,null,null,null,"竹之内　美里","（西尾）",6]
[null,null,null,null,null,null,null,null,"10",null,null,null,null,null,null,null,null,null,null,"12"]
[null,null,null,2,"太田　華蓮","（矢作）",null,null,null,null,null,null,null,null,null,null,null,null,null,null,null,null,"橋本　和花子","(甲山）",7]
[null,null,null,null,null,null,null,"1"]
[null,null,null,3,"粕谷　志薗","（吉良）",null,null,null,"22",null,null,null,null,null,null,null,null,"23",null,null,null,"福士　桃花","（高岡）",8]
[]
[null,null,null,4,"阿部　樹","（矢作）",null,null,null,null,null,null,null,null,null,null,null,null,null,null,null,null,null,"ｂｙｅ",9]
[null,null,null,null,null,null,null,null,"11",null,null,null,null,null,null,null,null,null,null,"13"]
[null,null,null,5,"下村綾乃","（一色）",null,null,null,null,null,null,null,null,null,null,null,null,null,null,null,null,"庄屋　未来","（矢作）",10]
[null,null,null,null,null,null,null,null,null,null,""]

{"sheet":"44","index":2,"n_rows":17,"n_cols":25,"rows_kept":17,"cut":false,"hidden":false,"merged":[[14,2,15,2],[14,3,15,3],[14,4,15,4],[14,5,15,5],[14,6,15,6],[16,2,17,2],[16,3,17,3],[16,4,17,4],[16,5,17,5],[16,6,17,6],[12,21,13,21],[12,22,13,22],[12,23,13,23],[12,24,13,24],[14,22,15,22],[14,23,15,23],[14,24,15,24],[14,21,15,21],[12,2,13,2],[12,3,13,3],[12,4,13,4],[12,5,13,5],[12,6,13,6],[8,24,9,24],[10,2,11,2],[10,3,11,3],[10,4,11,4],[10,5,11,5],[10,6,11,6],[10,21,11,21],[10,22,11,22],[10,23,11,23],[10,24,11,24],[8,2,9,2],[8,3,9,3],[8,4,9,4],[8,5,9,5],[8,6,9,6],[4,21,5,21],[4,22,5,22],[4,23,5,23],[8,21,9,21],[8,22,9,22],[8,23,9,23],[4,24,5,24],[6,2,7,2],[6,3,7,3],[6,4,7,4],[6,5,7,5],[6,6,7,6],[6,21,7,21],[6,22,7,22],[6,23,7,23],[6,24,7,24],[3,9,3,18],[4,2,5,2],[4,3,5,3],[4,4,5,4],[4,5,5,5],[4,6,5,6]]}
[null,null,null,null,null,null,null,null,null,null,null,null,null,null,null,null,null,null,null,null,null,null,null,null,"西三河中学校強化選手選考会"]
[null,null,null,null,null,null,null,null,null,null,null,null,null,null,null,null,null,null,null,null,null,null,null,null,"平成３０年1１月１０日"]
[null,null,null,null,null,null,null,null,null,null,null,null,null,null,null,null,null,null,null,null,null,null,null,null,"刈谷市武道館"]
[null,null,null,"女子４４ｋｇ級",null,null,null,null,null,"第6試合会場"]
[null,null,null,1,"黒木　悠里","（矢作）",null,null,null,null,null,null,null,null,null,null,null,null,null,null,null,null,"池田　羽美","（竜北）",8]
[null,null,null,null,null,null,null,null,"11",null,null,null,null,null,null,null,null,null,null,"13"]
[null,null,null,2,"高橋　沙弥","（西尾）",null,null,null,null,null,null,null,null,null,null,null,null,null,null,null,null,"友松　みやき","（西尾）",9]
[null,null,null,null,null,null,null,"１",null,null,null,null,null,null,null,null,null,null,null,null,"3"]
[null,null,null,3,"柴田　麻衣","（高岡）",null,null,null,null,null,null,null,null,null,null,null,null,null,null,null,null,"水野　麗","（矢作）",10]
[null,null,null,null,null,null,null,null,null,"23",null,null,null,null,null,null,null,null,"24"]
[null,null,null,4,"小林　心暖","（竜北）",null,null,null,null,null,null,null,null,null,null,null,null,null,null,null,null,"小池　沙弥","（矢作）",11]
[null,null,null,null,null,null,null,"2",null,null,null,null,null,null,null,null,null,null,null,null,"4"]
[null,null,null,5,"永野　優稀","（藤岡）",null,null,null,null,null,null,null,null,null,null,null,null,null,"14",null,null,"三浦　優美","（高岡）",12]
[null,null,null,null,null,null,null,null,"12"]
[null,null,null,6,null,"ｂｙｅ",null,null,null,null,null,null,null,null,null,null,null,null,null,null,null,null,"永田　暖奈","（平坂）",13]
[]
[null,null,null,7,"田村　沙綾","（竜南）"]

{"sheet":"48","index":3,"n_rows":19,"n_cols":25,"rows_kept":19,"cut":false,"hidden":false,"merged":[[16,23,17,23],[16,24,17,24],[18,21,19,21],[18,22,19,22],[18,23,19,23],[18,24,19,24],[16,21,17,21],[16,22,17,22],[14,2,15,2],[14,3,15,3],[14,4,15,4],[14,5,15,5],[14,6,15,6],[16,2,17,2],[16,3,17,3],[16,4,17,4],[16,5,17,5],[16,6,17,6],[12,21,13,21],[12,22,13,22],[12,23,13,23],[12,24,13,24],[14,22,15,22],[14,23,15,23],[14,24,15,24],[14,21,15,21],[12,2,13,2],[12,3,13,3],[12,4,13,4],[12,5,13,5],[12,6,13,6],[8,24,9,24],[10,2,11,2],[10,3,11,3],[10,4,11,4],[10,5,11,5],[10,6,11,6],[10,21,11,21],[10,22,11,22],[10,23,11,23],[10,24,11,24],[8,2,9,2],[8,3,9,3],[8,4,9,4],[8,5,9,5],[8,6,9,6],[4,21,5,21],[4,22,5,22],[4,23,5,23],[8,21,9,21],[8,22,9,22],[8,23,9,23],[4,24,5,24],[6,2,7,2],[6,3,7,3],[6,4,7,4],[6,5,7,5],[6,6,7,6],[6,21,7,21],[6,22,7,22],[6,23,7,23],[6,24,7,24],[3,9,3,18],[4,2,5,2],[4,3,5,3],[4,4,5,4],[4,5,5,5],[4,6,5,6]]}
[null,null,null,null,null,null,null,null,null,null,null,null,null,null,null,null,null,null,null,null,null,null,null,null,"西三河中学校強化選手選考会"]
[null,null,null,null,null,null,null,null,null,null,null,null,null,null,null,null,null,null,null,null,null,null,null,null,"平成３０年1１月１０日"]
[null,null,null,null,null,null,null,null,null,null,null,null,null,null,null,null,null,null,null,null,null,null,null,null,"刈谷市武道館"]
[null,null,null,"女子４８ｋｇ級",null,null,null,null,null,"第5試合会場"]
[null,null,null,1,"菊池　律杏","（美里）",null,null,null,null,null,null,null,null,null,null,null,null,null,null,null,null,"黒木　唯花","（矢作）",8]
[null,null,null,null,null,null,null,null,"14",null,null,null,null,null,null,null,null,null,null,null,"5"]
[null,null,null,2,"榊原　梨乃","（西尾）",null,null,null,null,null,null,null,null,null,null,null,null,null,null,null,null,"森　千陽","（西尾）",9]
[null,null,null,null,null,null,null,"2",null,null,null,null,null,null,null,null,null,null,null,"16"]
[null,null,null,3,"岡田　玲奈","（竜北）",null,null,null,null,null,null,null,null,null,null,null,null,null,null,null,null,"斉藤 保乃華","（吉良）",10]
[null,null,null,null,null,null,null,null,null,"24",null,null,null,null,null,null,null,null,"25",null,"6"]
[null,null,null,4,"山本　瑞希","（竜南）",null,null,null,null,null,null,null,null,null,null,null,null,null,null,null,null,"永田　蒼依","（高岡）",11]
[null,null,null,null,null,null,null,"3"]
[null,null,null,5,"福岡 真由美","（平坂）",null,null,null,null,null,null,null,null,null,null,null,null,null,null,null,null,"福岡　侑季","（竜南）",12]
[null,null,null,null,null,null,null,null,"15",null,null,null,null,null,null,null,null,null,null,null,"7"]
[null,null,null,6,"関　佳奈","（高岡）",null,null,null,null,null,null,null,null,null,null,null,null,null,null,null,null,"中島　姫香","（吉良）",13]
[null,null,null,null,null,null,null,"4",null,null,null,null,null,null,null,null,null,null,null,"17"]
[null,null,null,7,"岩月　星那","（吉良）",null,null,null,null,null,null,null,null,null,null,null,null,null,null,null,null,null,"ｂｙｅ",14]
[]
[null,null,null,null,null,null,null,null,null,null,null,null,null,null,null,null,null,null,null,null,null,null,"上條　恵美","（高岡）",15]

{"sheet":"52","index":4,"n_rows":19,"n_cols":25,"rows_kept":19,"cut":false,"hidden":false,"merged":[[16,23,17,23],[16,24,17,24],[18,21,19,21],[18,22,19,22],[18,23,19,23],[18,24,19,24],[16,21,17,21],[16,22,17,22],[14,2,15,2],[14,3,15,3],[14,4,15,4],[14,5,15,5],[14,6,15,6],[16,2,17,2],[16,3,17,3],[16,4,17,4],[16,5,17,5],[16,6,17,6],[12,21,13,21],[12,22,13,22],[12,23,13,23],[12,24,13,24],[14,22,15,22],[14,23,15,23],[14,24,15,24],[14,21,15,21],[12,2,13,2],[12,3,13,3],[12,4,13,4],[12,5,13,5],[12,6,13,6],[8,24,9,24],[10,2,11,2],[10,3,11,3],[10,4,11,4],[10,5,11,5],[10,6,11,6],[10,21,11,21],[10,22,11,22],[10,23,11,23],[10,24,11,24],[8,2,9,2],[8,3,9,3],[8,4,9,4],[8,5,9,5],[8,6,9,6],[4,21,5,21],[4,22,5,22],[4,23,5,23],[8,21,9,21],[8,22,9,22],[8,23,9,23],[4,24,5,24],[6,2,7,2],[6,3,7,3],[6,4,7,4],[6,5,7,5],[6,6,7,6],[6,21,7,21],[6,22,7,22],[6,23,7,23],[6,24,7,24],[3,9,3,18],[4,2,5,2],[4,3,5,3],[4,4,5,4],[4,5,5,5],[4,6,5,6]]}
[null,null,null,null,null,null,null,null,null,null,null,null,null,null,null,null,null,null,null,null,null,null,null,null,"西三河中学校強化選手選考会"]
[null,null,null,null,null,null,null,null,null,null,null,null,null,null,null,null,null,null,null,null,null,null,null,null,"平成３０年1１月１０日"]
[null,null,null,null,null,null,null,null,null,null,null,null,null,null,null,null,null,null,null,null,null,null,null,null,"刈谷市武道館"]
[null,null,null,"女子５２ｋｇ級",null,null,null,null,null,"第6試合会場"]
[null,null,null,1,"神田　姫居","（安城南）",null,null,null,null,null,null,null,null,null,null,null,null,null,null,null,null,"都築　文音","（高岡）",8]
[null,null,null,null,null,null,null,null,"15",null,null,null,null,null,null,null,null,null,null,null,"8"]
[null,null,null,2,"平岩　冴十乃","（竜南）",null,null,null,null,null,null,null,null,null,null,null,null,null,null,null,null,"山本　彩加","（竜南）",9]
[null,null,null,null,null,null,null,"５",null,null,null,null,null,null,null,null,null,null,null,"17"]
[null,null,null,3,"鈴木　みほ","（竜北）",null,null,null,null,null,null,null,null,null,null,null,null,null,null,null,null,"山本　結加","（竜南）",10]
[null,null,null,null,null,null,null,null,null,"25",null,null,null,null,null,null,null,null,"26",null,"9"]
[null,null,null,4,"佐々木　鈴","(甲山）",null,null,null,null,null,null,null,null,null,null,null,null,null,null,null,null,"榊原　彩乃","（明祥）",11]
[null,null,null,null,null,null,null,"6"]
[null,null,null,5,"鈴木　琴子","（高岡）",null,null,null,null,null,null,null,null,null,null,null,null,null,null,null,null,"高須悠花","（一色）",12]
[null,null,null,null,null,null,null,null,"16",null,null,null,null,null,null,null,null,null,null,null,"10"]
[null,null,null,6,"長谷　アナ","（竜南）",null,null,null,null,null,null,null,null,null,null,null,null,null,null,null,null,"戸木田　美寿々","（高岡）",13]
[null,null,null,null,null,null,null,"7",null,null,null,null,null,null,null,null,null,null,null,"18"]
[null,null,null,7,"須山　琴音","（平坂）",null,null,null,null,null,null,null,null,null,null,null,null,null,null,null,null,null,"ｂｙｅ",14]
[null,null,null,null,null,null,null,null,null,null,null,null,null,null,null,null,null,null,null,null,"11"]
[null,null,null,null,null,null,null,null,null,null,null,null,null,null,null,null,null,null,null,null,null,null,"俊　玲衣香","（矢作）",15]

{"sheet":"57","index":5,"n_rows":15,"n_cols":25,"rows_kept":15,"cut":false,"hidden":false,"merged":[[14,21,15,21],[14,22,15,22],[14,23,15,23],[14,24,15,24],[10,24,11,24],[12,21,13,21],[12,22,13,22],[12,23,13,23],[12,24,13,24],[12,2,13,2],[12,3,13,3],[12,4,13,4],[12,5,13,5],[12,6,13,6],[10,21,11,21],[10,22,11,22],[10,23,11,23],[8,2,9,2],[8,3,9,3],[8,4,9,4],[8,5,9,5],[10,2,11,2],[10,3,11,3],[10,4,11,4],[10,5,11,5],[10,6,11,6],[8,6,9,6],[4,21,5,21],[4,22,5,22],[4,23,5,23],[4,24,5,24],[6,21,7,21],[6,22,7,22],[6,23,7,23],[6,24,7,24],[8,21,9,21],[8,22,9,22],[8,23,9,23],[8,24,9,24],[6,2,7,2],[6,3,7,3],[6,4,7,4],[6,5,7,5],[6,6,7,6],[3,9,3,18],[4,2,5,2],[4,3,5,3],[4,4,5,4],[4,5,5,5],[4,6,5,6]]}
[null,null,null,null,null,null,null,null,null,null,null,null,null,null,null,null,null,null,null,null,null,null,null,null,"西三河中学校強化選手選考会"]
[null,null,null,null,null,null,null,null,null,null,null,null,null,null,null,null,null,null,null,null,null,null,null,null,"平成３０年1１月１０日"]
[null,null,null,null,null,null,null,null,null,null,null,null,null,null,null,null,null,null,null,null,null,null,null,null,"刈谷市武道館"]
[null,null,null,"女子５７ｋｇ級",null,null,null,null,null,"第5試合会場"]
[null,null,null,1,"榊原　共笑","（一色）",null,null,null,null,null,null,null,null,null,null,null,null,null,null,null,null,"鈴木愛梨","（一色）",6]
[null,null,null,null,null,null,null,null,"18",null,null,null,null,null,null,null,null,null,null,"20"]
[null,null,null,2,"宮本　カオリ","（平坂）",null,null,null,null,null,null,null,null,null,null,null,null,null,null,null,null,null,"ｂｙｅ",7]
[null,null,null,null,null,null,null,"8"]
[null,null,null,3,"立野一花","（矢作）",null,null,null,"26",null,null,null,null,null,null,null,null,"27",null,null,null,"紺谷　彩華","（矢作北）",8]
[]
[null,null,null,4,"村松　由貴乃","（一色）",null,null,null,null,null,null,null,null,null,null,null,null,null,null,null,null,"高橋　凛","（西尾）",9]
[null,null,null,null,null,null,null,null,"19",null,null,null,null,null,null,null,null,null,null,null,"9"]
[null,null,null,5,"近藤　奏楽","(甲山）",null,null,null,null,null,null,null,null,null,null,null,null,null,null,null,null,"湯浅　那月","（矢作）",10]
[null,null,null,null,null,null,null,null,null,null,null,null,null,null,null,null,null,null,null,"21"]
[null,null,null,null,null,null,null,null,null,null,null,null,null,null,null,null,null,null,null,null,null,null,"山内　亜友那","（依佐美）",11]

{"sheet":"63","index":6,"n_rows":13,"n_cols":25,"rows_kept":13,"cut":false,"hidden":false,"merged":[[12,2,13,2],[12,3,13,3],[12,4,13,4],[12,5,13,5],[12,6,13,6],[8,24,9,24],[10,2,11,2],[10,3,11,3],[10,4,11,4],[10,5,11,5],[10,6,11,6],[10,21,11,21],[10,22,11,22],[10,23,11,23],[10,24,11,24],[8,2,9,2],[8,3,9,3],[8,4,9,4],[8,5,9,5],[8,6,9,6],[4,21,5,21],[4,22,5,22],[4,23,5,23],[8,21,9,21],[8,22,9,22],[8,23,9,23],[4,24,5,24],[6,2,7,2],[6,3,7,3],[6,4,7,4],[6,5,7,5],[6,6,7,6],[6,21,7,21],[6,22,7,22],[6,23,7,23],[6,24,7,24],[3,9,3,18],[4,2,5,2],[4,3,5,3],[4,4,5,4],[4,5,5,5],[4,6,5,6]]}
[null,null,null,null,null,null,null,null,null,null,null,null,null,null,null,null,null,null,null,null,null,null,null,null,"西三河中学校強化選手選考会"]
[null,null,null,null,null,null,null,null,null,null,null,null,null,null,null,null,null,null,null,null,null,null,null,null,"平成３０年1１月１０日"]
[null,null,null,null,null,null,null,null,null,null,null,null,null,null,null,null,null,null,null,null,null,null,null,null,"刈谷市武道館"]
[null,null,null,"女子６３ｋｇ級",null,null,null,null,null,"第6試合会場"]
[null,null,null,1,"榊原　美月","(甲山）",null,null,null,null,null,null,null,null,null,null,null,null,null,null,null,null,"安田　愛華","（高岡）",6]
[null,null,null,null,null,null,null,null,"19",null,null,null,null,null,null,null,null,null,null,"21"]
[null,null,null,2,null,null,null,null,null,null,null,null,null,null,null,null,null,null,null,null,null,null,"戸澤　彩女","(甲山）",7]
[]
[null,null,null,3,"畑井　樹里","（高岡）",null,null,null,"27",null,null,null,null,null,null,null,null,"28",null,null,null,"橋本　百合","（矢作）",8]
[null,null,null,null,null,null,null,null,null,null,null,null,null,null,null,null,null,null,null,"22"]
[null,null,null,4,"ダシルバ　エロイザ","（三好丘）",null,null,null,null,null,null,null,null,null,null,null,null,null,null,null,null,"中嶋　梨琴","（吉良）",9]
[null,null,null,null,null,null,null,null,"20"]
[null,null,null,5,"岡田　葵","（一色）"]

{"sheet":"70","index":7,"n_rows":5,"n_cols":21,"rows_kept":5,"cut":false,"hidden":false,"merged":[[4,18,5,18],[4,19,5,19],[4,20,5,20],[3,7,3,16],[4,3,5,3],[4,4,5,4],[4,5,5,5],[4,6,5,6],[4,17,5,17]]}
[null,null,null,null,null,null,null,null,null,null,null,null,null,null,null,null,null,null,null,null,"西三河中学校強化選手選考会"]
[null,null,null,null,null,null,null,null,null,null,null,null,null,null,null,null,null,null,null,null,"平成３０年1１月１０日"]
[null,null,null,null,null,null,null,null,null,null,null,null,null,null,null,null,null,null,null,null,"刈谷市武道館"]
[null,null,null,"女子７０ｋｇ級",null,null,null,"第5試合会場"]
[null,null,null,1,"寺部　奈緒美","（みよし北）",null,null,null,null,null,null,null,null,null,null,null,null,"長屋　心優","（高岡）",2]

{"sheet":"+70","index":8,"n_rows":9,"n_cols":25,"rows_kept":9,"cut":false,"hidden":false,"merged":[[8,2,9,2],[8,6,9,6],[4,24,5,24],[5,3,6,3],[5,4,6,4],[5,5,6,5],[6,2,7,2],[6,6,7,6],[6,21,7,21],[6,22,7,22],[6,23,7,23],[6,24,7,24],[4,23,5,23],[3,9,3,18],[4,2,5,2],[4,6,5,6],[4,21,5,21],[4,22,5,22]]}
[null,null,null,null,null,null,null,null,null,null,null,null,null,null,null,null,null,null,null,null,null,null,null,null,"西三河中学校強化選手選考会"]
[null,null,null,null,null,null,null,null,null,null,null,null,null,null,null,null,null,null,null,null,null,null,null,null,"平成３０年1１月１０日"]
[null,null,null,null,null,null,null,null,null,null,null,null,null,null,null,null,null,null,null,null,null,null,null,null,"刈谷市武道館"]
[null,null,null,"女子７０ｋｇ超級",null,null,null,null,null,"第6試合会場"]
[null,null,null,null,null,null,null,null,null,null,null,null,null,null,null,null,null,null,null,null,null,null,"中野　里凛","（高浜）",2]
[null,null,null,1,"岡田　彩花","（一色）",null,null,null,null,null,null,null,null,null,null,null,null,null,"29"]
[null,null,null,null,null,null,null,null,null,null,null,null,null,null,null,null,null,null,null,null,null,null,"宇根　真友美","（矢作）",3]
[]
[null,null,null,null,null,null,null,null,null,""]

{"sheet":"50","index":9,"n_rows":52,"n_cols":25,"rows_kept":52,"cut":false,"hidden":false,"merged":[[50,24,51,24],[48,23,49,23],[48,24,49,24],[50,2,51,2],[50,3,51,3],[50,4,51,4],[50,5,51,5],[50,6,51,6],[50,21,51,21],[50,22,51,22],[50,23,51,23],[46,22,47,22],[46,23,47,23],[46,24,47,24],[48,2,49,2],[48,3,49,3],[48,4,49,4],[48,5,49,5],[48,6,49,6],[48,21,49,21],[48,22,49,22],[46,2,47,2],[46,3,47,3],[46,4,47,4],[46,5,47,5],[46,6,47,6],[46,21,47,21],[44,2,45,2],[44,3,45,3],[44,4,45,4],[44,5,45,5],[44,6,45,6],[44,21,45,21],[44,22,45,22],[44,23,45,23],[44,24,45,24],[42,2,43,2],[42,3,43,3],[42,4,43,4],[42,5,43,5],[42,6,43,6],[42,21,43,21],[42,22,43,22],[42,23,43,23],[42,24,43,24],[38,22,39,22],[38,23,39,23],[38,24,39,24],[40,2,41,2],[40,3,41,3],[40,4,41,4],[40,5,41,5],[40,6,41,6],[40,21,41,21],[40,22,41,22],[38,2,39,2],[38,3,39,3],[38,4,39,4],[38,5,39,5],[38,6,39,6],[38,21,39,21],[40,23,41,23],[40,24,41,24],[36,2,37,2],[36,3,37,3],[36,4,37,4],[36,5,37,5],[36,6,37,6],[36,21,37,21],[36,22,37,22],[36,23,37,23],[36,24,37,24],[34,2,35,2],[34,3,35,3],[34,4,35,4],[34,5,35,5],[34,6,35,6],[34,21,35,21],[34,22,35,22],[34,23,35,23],[34,24,35,24],[30,22,31,22],[30,23,31,23],[30,24,31,24],[32,2,33,2],[32,3,33,3],[32,4,33,4],[32,5,33,5],[32,6,33,6],[32,21,33,21],[32,22,33,22],[30,2,31,2],[30,3,31,3],[30,4,31,4],[30,5,31,5],[30,6,31,6],[30,21,31,21],[32,23,33,23],[32,24,33,24],[28,2,29,2],[28,3,29,3],[28,4,29,4],[28,5,29,5],[28,6,29,6],[28,21,29,21],[28,22,29,22],[28,23,29,23],[28,24,29,24],[26,2,27,2],[26,3,27,3],[26,4,27,4],[26,5,27,5],[26,6,27,6],[26,21,27,21],[26,22,27,22],[26,23,27,23],[26,24,27,24],[22,22,23,22],[22,23,23,23],[22,24,23,24],[24,2,25,2],[24,3,25,3],[24,4,25,4],[24,5,25,5],[24,6,25,6],[24,21,25,21],[24,22,25,22],[22,2,23,2],[22,3,23,3],[22,4,23,4],[22,5,23,5],[22,6,23,6],[22,21,23,21],[24,23,25,23],[24,24,25,24],[20,2,21,2],[20,3,21,3],[20,4,21,4],[20,5,21,5],[20,6,21,6],[20,21,21,21],[20,22,21,22],[20,23,21,23],[20,24,21,24],[18,2,19,2],[18,3,19,3],[18,4,19,4],[18,5,19,5],[18,6,19,6],[18,21,19,21],[18,22,19,22],[18,23,19,23],[18,24,19,24],[14,22,15,22],[14,23,15,23],[14,24,15,24],[16,2,17,2],[16,3,17,3],[16,4,17,4],[16,5,17,5],[16,6,17,6],[16,21,17,21],[16,22,17,22],[14,2,15,2],[14,3,15,3],[14,4,15,4],[14,5,15,5],[14,6,15,6],[14,21,15,21],[16,23,17,23],[16,24,17,24],[12,2,13,2],[12,3,13,3],[12,4,13,4],[12,5,13,5],[12,6,13,6],[12,21,13,21],[12,22,13,22],[12,23,13,23],[12,24,13,24],[10,2,11,2],[10,3,11,3],[10,4,11,4],[10,5,11,5],[10,6,11,6],[10,21,11,21],[10,22,11,22],[10,23,11,23],[10,24,11,24],[8,2,9,2],[8,3,9,3],[8,4,9,4],[8,5,9,5],[8,6,9,6],[8,21,9,21],[8,22,9,22],[8,23,9,23],[8,24,9,24],[4,24,5,24],[6,2,7,2],[6,3,7,3],[6,4,7,4],[6,5,7,5],[6,6,7,6],[6,21,7,21],[6,22,7,22],[6,23,7,23],[6,24,7,24],[3,11,3,16],[4,2,5,2],[4,3,5,3],[4,4,5,4],[4,5,5,5],[4,6,5,6],[4,21,5,21],[4,22,5,22],[4,23,5,23]]}
[null,null,null,null,null,null,null,null,null,null,null,null,null,null,null,null,null,null,null,null,null,null,null,null,"西三河中学校強化選手選考会"]
[null,null,null,null,null,null,null,null,null,null,null,null,null,null,null,null,null,null,null,null,null,null,null,null,"平成３０年1１月１０日"]
[null,null,null,null,null,null,null,null,null,null,null,null,null,null,null,null,null,null,null,null,null,null,null,null,"刈谷市武道館"]
[null,null,null,"男子５０ｋｇ級",null,null,null,null,null,null,null,"第１試合会場"]
[null,null,null,1,"栗田　真杜","(竜北)",null,null,null,null,null,null,null,null,null,null,null,null,null,null,null,null,"山田欧太郎","(一色)",25]
[null,null,null,null,null,null,null,null,"17",null,null,null,null,null,null,null,null,null,null,"25"]
[null,null,null,2,"神谷　誠","(高浜南)",null,null,null,null,null,null,null,null,null,null,null,null,null,null,null,null,"原田　彪雅","(葵)",26]
[null,null,null,null,null,null,null,"1",null,null,null,null,null,null,null,null,null,null,null,null,"9"]
[null,null,null,3,"仲村　秦","(矢作)",null,null,null,null,null,null,null,null,null,null,null,null,null,null,null,null,"松本　竹蔵","(高浜南)",27]
[null,null,null,null,null,null,null,null,null,"33",null,null,null,null,null,null,null,null,"37"]
[null,null,null,4,"羽渕　豪","(美里)",null,null,null,null,null,null,null,null,null,null,null,null,null,null,null,null,"小山内　晴空","(甲山)",28]
[null,null,null,null,null,null,null,"2",null,null,null,null,null,null,null,null,null,null,null,null,"10"]
[null,null,null,5,null,"ｂｙｅ",null,null,null,null,null,null,null,null,null,null,null,null,null,null,null,null,"室田　脩人","(三好)",29]
[null,null,null,null,null,null,null,null,"18",null,null,null,null,null,null,null,null,null,null,"26"]
[null,null,null,6,"蓮川　光琉","(甲山)",null,null,null,null,null,null,null,null,null,null,null,null,null,null,null,null,"岡本　貫志","(竜南)",30]
[null,null,null,null,null,null,null,null,null,null,"41",null,null,null,null,null,null,"43"]
[null,null,null,7,"山下　海翔","(高岡)",null,null,null,null,null,null,null,null,null,null,null,null,null,null,null,null,"林　幹太","(高岡)",31]
[null,null,null,null,null,null,null,null,"19",null,null,null,null,null,null,null,null,null,null,"27"]
[null,null,null,8,"倉内蒼生","(一色)",null,null,null,null,null,null,null,null,null,null,null,null,null,null,null,null,"新井　奏汰","(安城南)",32]
[null,null,null,null,null,null,null,"3",null,null,null,null,null,null,null,null,null,null,null,null,"11"]
[null,null,null,9,"近藤　匠","(岩津)",null,null,null,null,null,null,null,null,null,null,null,null,null,null,null,null,"田畑　京志","(矢作北)",33]
[null,null,null,null,null,null,null,null,null,"34",null,null,null,null,null,null,null,null,"38"]
[null,null,null,10,"坂本　太陽","(碧南南)",null,null,null,null,null,null,null,null,null,null,null,null,null,null,null,null,"矢野　颯大","(矢作)",34]
[null,null,null,null,null,null,null,"4",null,null,null,null,null,null,null,null,null,null,null,null,"12"]
[null,null,null,11,"坂口　蒼真","(葵)",null,null,null,null,null,null,null,null,null,null,null,null,null,null,null,null,"小川　諒大","(竜北)",35]
[null,null,null,null,null,null,null,null,"20",null,null,null,null,null,null,null,null,null,null,"28"]
[null,null,null,12,"中島　大和","(矢作北)",null,null,null,null,null,null,null,null,null,null,null,null,null,null,null,null,"嶋田　音輝","(碧南南)",36]
[null,null,null,null,null,null,null,null,null,null,null,"45",null,null,null,null,"46"]
[null,null,null,13,"髙橋　遥瑠大","(矢作北)",null,null,null,null,null,null,null,null,null,null,null,null,null,null,null,null,"榊原　頌太","(明祥)",37]
[null,null,null,null,null,null,null,null,"21",null,null,null,null,null,null,null,null,null,null,"29"]
[null,null,null,14,"下田　寿桃","(葵)",null,null,null,null,null,null,null,null,null,null,null,null,null,null,null,null,"山口　智也","(高岡)",38]
[null,null,null,null,null,null,null,"5",null,null,null,null,null,null,null,null,null,null,null,null,"13"]
[null,null,null,15,"野中　ルカス","(高浜)",null,null,null,null,null,null,null,null,null,null,null,null,null,null,null,null,"岩崎　奏太","(西尾)",39]
[null,null,null,null,null,null,null,null,null,"35",null,null,null,null,null,null,null,null,"39"]
[null,null,null,16,"前田　柚葵","(甲山)",null,null,null,null,null,null,null,null,null,null,null,null,null,null,null,null,"兵藤　誠也","(竜海)",40]
[null,null,null,null,null,null,null,"6",null,null,null,null,null,null,null,null,null,null,null,null,"14"]
[null,null,null,17,"多和田　悠惺","(みよし北)",null,null,null,null,null,null,null,null,null,null,null,null,null,null,null,null,"宮川　朔来","(猿投)",41]
[null,null,null,null,null,null,null,null,"22",null,null,null,null,null,null,null,null,null,null,"30"]
[null,null,null,18,"岩附　乃偉","(矢作北)",null,null,null,null,null,null,null,null,null,null,null,null,null,null,null,null,"本田　大和","(甲山)",42]
[null,null,null,null,null,null,null,null,null,null,"42",null,null,null,null,null,null,"44"]
[null,null,null,19,"高田　祐太郎","(竜南)",null,null,null,null,null,null,null,null,null,null,null,null,null,null,null,null,"水越　崇仁","(矢作)",43]
[null,null,null,null,null,null,null,null,"23",null,null,null,null,null,null,null,null,null,null,"31"]
[null,null,null,20,"中根　航輝","(矢作)",null,null,null,null,null,null,null,null,null,null,null,null,null,null,null,null,null,"ｂｙｅ",44]
[null,null,null,null,null,null,null,"7",null,null,null,null,null,null,null,null,null,null,null,null,"15"]
[null,null,null,21,"新美　宗瑛","(碧南南)",null,null,null,null,null,null,null,null,null,null,null,null,null,null,null,null,"清水　友希","(碧南南)",45]
[null,null,null,null,null,null,null,null,null,"36",null,null,null,null,null,null,null,null,"40"]
[null,null,null,22,"中根　翔愛","(平坂)",null,null,null,null,null,null,null,null,null,null,null,null,null,null,null,null,"梅村　好太","(猿投台)",46]
[null,null,null,null,null,null,null,"8",null,null,null,null,null,null,null,null,null,null,null,null,"16"]
[null,null,null,23,"奥本　晃士郎","(竜海)",null,null,null,null,null,null,null,null,null,null,null,null,null,null,null,null,"川村　宙輝","(吉良)",47]
[null,null,null,null,null,null,null,null,"24",null,null,null,null,null,null,null,null,null,null,"32"]
[null,null,null,24,"礒谷　悠","(高岡)",null,null,null,null,null,null,null,null,null,null,null,null,null,null,null,null,"神谷　至恩","(岡崎東海)",48]
[null,null,null,null,null,null,null,null,null,null,null,null,""]

{"sheet":"55","index":10,"n_rows":36,"n_cols":25,"rows_kept":36,"cut":false,"hidden":false,"merged":[[34,24,35,24],[32,23,33,23],[32,24,33,24],[34,2,35,2],[34,3,35,3],[34,4,35,4],[34,5,35,5],[34,6,35,6],[34,21,35,21],[34,22,35,22],[34,23,35,23],[30,22,31,22],[30,23,31,23],[30,24,31,24],[32,2,33,2],[32,3,33,3],[32,4,33,4],[32,5,33,5],[32,6,33,6],[32,21,33,21],[32,22,33,22],[30,2,31,2],[30,3,31,3],[30,4,31,4],[30,5,31,5],[30,6,31,6],[30,21,31,21],[28,2,29,2],[28,3,29,3],[28,4,29,4],[28,5,29,5],[28,6,29,6],[28,21,29,21],[28,22,29,22],[28,23,29,23],[28,24,29,24],[26,2,27,2],[26,3,27,3],[26,4,27,4],[26,5,27,5],[26,6,27,6],[26,21,27,21],[26,22,27,22],[26,23,27,23],[26,24,27,24],[22,22,23,22],[22,23,23,23],[22,24,23,24],[24,2,25,2],[24,3,25,3],[24,4,25,4],[24,5,25,5],[24,6,25,6],[24,21,25,21],[24,22,25,22],[22,2,23,2],[22,3,23,3],[22,4,23,4],[22,5,23,5],[22,6,23,6],[22,21,23,21],[24,23,25,23],[24,24,25,24],[20,2,21,2],[20,3,21,3],[20,4,21,4],[20,5,21,5],[20,6,21,6],[20,21,21,21],[20,22,21,22],[20,23,21,23],[20,24,21,24],[18,2,19,2],[18,3,19,3],[18,4,19,4],[18,5,19,5],[18,6,19,6],[18,21,19,21],[18,22,19,22],[18,23,19,23],[18,24,19,24],[14,22,15,22],[14,23,15,23],[14,24,15,24],[16,2,17,2],[16,3,17,3],[16,4,17,4],[16,5,17,5],[16,6,17,6],[16,21,17,21],[16,22,17,22],[14,2,15,2],[14,3,15,3],[14,4,15,4],[14,5,15,5],[14,6,15,6],[14,21,15,21],[16,23,17,23],[16,24,17,24],[12,2,13,2],[12,3,13,3],[12,4,13,4],[12,5,13,5],[12,6,13,6],[12,21,13,21],[12,22,13,22],[12,23,13,23],[12,24,13,24],[10,2,11,2],[10,3,11,3],[10,4,11,4],[10,5,11,5],[10,6,11,6],[10,21,11,21],[10,22,11,22],[10,23,11,23],[10,24,11,24],[8,2,9,2],[8,3,9,3],[8,4,9,4],[8,5,9,5],[8,6,9,6],[8,21,9,21],[8,22,9,22],[8,23,9,23],[8,24,9,24],[4,24,5,24],[6,2,7,2],[6,3,7,3],[6,4,7,4],[6,5,7,5],[6,6,7,6],[6,21,7,21],[6,22,7,22],[6,23,7,23],[6,24,7,24],[3,10,3,17],[4,2,5,2],[4,3,5,3],[4,4,5,4],[4,5,5,5],[4,6,5,6],[4,21,5,21],[4,22,5,22],[4,23,5,23]]}
[null,null,null,null,null,null,null,null,null,null,null,null,null,null,null,null,null,null,null,null,null,null,null,null,"西三河中学校強化選手選考会"]
[null,null,null,null,null,null,null,null,null,null,null,null,null,null,null,null,null,null,null,null,null,null,null,null,"平成３０年1１月１０日"]
[null,null,null,null,null,null,null,null,null,null,null,null,null,null,null,null,null,null,null,null,null,null,null,null,"刈谷市武道館"]
[null,null,null,"男子５５ｋｇ級",null,null,null,null,null,null,"第２試合会場"]
[null,null,null,1,"作田　晴空","(愛教附岡崎)",null,null,null,null,null,null,null,null,null,null,null,null,null,null,null,null,"天神　琉陽","(明祥)",17]
[null,null,null,null,null,null,null,"１",null,null,null,null,null,null,null,null,null,null,null,null,"９"]
[null,null,null,2,null,"ｂｙｅ",null,null,null,null,null,null,null,null,null,null,null,null,null,null,null,null,null,"ｂｙｅ",18]
[null,null,null,null,null,null,null,null,"１７",null,null,null,null,null,null,null,null,null,null,"２１"]
[null,null,null,3,"淺岡　俊祐","(吉良)",null,null,null,null,null,null,null,null,null,null,null,null,null,null,null,null,"柴田　直弥","(三好)",19]
[null,null,null,null,null,null,null,"２",null,null,null,null,null,null,null,null,null,null,null,null,"１０"]
[null,null,null,4,"岩渕　一貴","(高岡)",null,null,null,null,null,null,null,null,null,null,null,null,null,null,null,null,"田中　咲多","(愛教附岡崎)",20]
[null,null,null,null,null,null,null,null,null,"２５",null,null,null,null,null,null,null,null,"２７"]
[null,null,null,5,"井上　隼汰","(逢妻)",null,null,null,null,null,null,null,null,null,null,null,null,null,null,null,null,"岩瀬　正英","(一色)",21]
[null,null,null,null,null,null,null,"３",null,null,null,null,null,null,null,null,null,null,null,null,"１１"]
[null,null,null,6,"池田　詩音","(矢作)",null,null,null,null,null,null,null,null,null,null,null,null,null,null,null,null,"滝川　明","(甲山)",22]
[null,null,null,null,null,null,null,null,"１８",null,null,null,null,null,null,null,null,null,null,"２２"]
[null,null,null,7,"久野　巧政","(甲山)",null,null,null,null,null,null,null,null,null,null,null,null,null,null,null,null,"三浦　一真","(高岡)",23]
[null,null,null,null,null,null,null,"４",null,null,null,null,null,null,null,null,null,null,null,null,"１２"]
[null,null,null,8,"野々山　永諒","(三好)",null,null,null,null,null,null,null,null,null,null,null,null,null,null,null,null,"福井　皆豊","(矢作北)",24]
[null,null,null,null,null,null,null,null,null,null,"２９",null,null,null,null,null,null,"３０"]
[null,null,null,9,"大木　壌","(竜北)",null,null,null,null,null,null,null,null,null,null,null,null,null,null,null,null,"山田　翔琉","(甲山)",25]
[null,null,null,null,null,null,null,"５",null,null,null,null,null,null,null,null,null,null,null,null,"１３"]
[null,null,null,10,"前口　慶祥","(竜南)",null,null,null,null,null,null,null,null,null,null,null,null,null,null,null,null,"山之内　巧","(みよし北)",26]
[null,null,null,null,null,null,null,null,"１９",null,null,null,null,null,null,null,null,null,null,"２３"]
[null,null,null,11,"田中　蒼琉","(みよし北)",null,null,null,null,null,null,null,null,null,null,null,null,null,null,null,null,"猪塚　大輝","(高岡)",27]
[null,null,null,null,null,null,null,"６",null,null,null,null,null,null,null,null,null,null,null,null,"１４"]
[null,null,null,12,"長沼　柊耶","(矢作北)",null,null,null,null,null,null,null,null,null,null,null,null,null,null,null,null,"舘　宗大朗","(矢作)",28]
[null,null,null,null,null,null,null,null,null,"２６",null,null,null,null,null,null,null,null,"２８"]
[null,null,null,13,"藤田　順也","(甲山)",null,null,null,null,null,null,null,null,null,null,null,null,null,null,null,null,"平松　昇大","(葵)",29]
[null,null,null,null,null,null,null,"７",null,null,null,null,null,null,null,null,null,null,null,null,"１５"]
[null,null,null,14,"田中　大地","(高岡)",null,null,null,null,null,null,null,null,null,null,null,null,null,null,null,null,"稲垣　心優","(平坂)",30]
[null,null,null,null,null,null,null,null,"２０",null,null,null,null,null,null,null,null,null,null,"２４"]
[null,null,null,15,"尾崎　斗哉","(安祥)",null,null,null,null,null,null,null,null,null,null,null,null,null,null,null,null,null,"ｂｙｅ",31]
[null,null,null,null,null,null,null,"８",null,null,null,null,null,null,null,null,null,null,null,null,"１６"]
[null,null,null,16,"鵜生川　道覇","(平坂)",null,null,null,null,null,null,null,null,null,null,null,null,null,null,null,null,"井上　竜汰","(逢妻)",32]
[null,null,null,null,null,null,null,null,null,null,null,""]

{"sheet":"60","index":11,"n_rows":24,"n_cols":25,"rows_kept":24,"cut":false,"hidden":false,"merged":[[22,2,23,2],[22,3,23,3],[22,4,23,4],[22,5,23,5],[22,6,23,6],[20,21,21,21],[20,22,21,22],[20,23,21,23],[20,24,21,24],[22,22,23,22],[22,23,23,23],[22,24,23,24],[22,21,23,21],[20,2,21,2],[20,3,21,3],[20,4,21,4],[20,5,21,5],[20,6,21,6],[16,23,17,23],[16,24,17,24],[18,2,19,2],[18,3,19,3],[18,4,19,4],[18,5,19,5],[18,6,19,6],[18,21,19,21],[18,22,19,22],[18,23,19,23],[18,24,19,24],[16,21,17,21],[16,22,17,22],[14,2,15,2],[14,3,15,3],[14,4,15,4],[14,5,15,5],[14,6,15,6],[16,2,17,2],[16,3,17,3],[16,4,17,4],[16,5,17,5],[16,6,17,6],[12,21,13,21],[12,22,13,22],[12,23,13,23],[12,24,13,24],[14,22,15,22],[14,23,15,23],[14,24,15,24],[14,21,15,21],[12,2,13,2],[12,3,13,3],[12,4,13,4],[12,5,13,5],[12,6,13,6],[8,24,9,24],[10,2,11,2],[10,3,11,3],[10,4,11,4],[10,5,11,5],[10,6,11,6],[10,21,11,21],[10,22,11,22],[10,23,11,23],[10,24,11,24],[8,2,9,2],[8,3,9,3],[8,4,9,4],[8,5,9,5],[8,6,9,6],[4,21,5,21],[4,22,5,22],[4,23,5,23],[8,21,9,21],[8,22,9,22],[8,23,9,23],[4,24,5,24],[6,2,7,2],[6,3,7,3],[6,4,7,4],[6,5,7,5],[6,6,7,6],[6,21,7,21],[6,22,7,22],[6,23,7,23],[6,24,7,24],[3,10,3,17],[4,2,5,2],[4,3,5,3],[4,4,5,4],[4,5,5,5],[4,6,5,6]]}
[null,null,null,null,null,null,null,null,null,null,null,null,null,null,null,null,null,null,null,null,null,null,null,null,"西三河中学校強化選手選考会"]
[null,null,null,null,null,null,null,null,null,null,null,null,null,null,null,null,null,null,null,null,null,null,null,null,"平成３０年1１月１０日"]
[null,null,null,null,null,null,null,null,null,null,null,null,null,null,null,null,null,null,null,null,null,null,null,null,"刈谷市武道館"]
[null,null,null,"男子６０ｋｇ級",null,null,null,null,null,null,"第３試合会場"]
[null,null,null,1,"中村　響","(みよし北)",null,null,null,null,null,null,null,null,null,null,null,null,null,null,null,null,"浜田　力輝","(碧南南)",11]
[null,null,null,null,null,null,null,null,"９",null,null,null,null,null,null,null,null,null,null,"１３"]
[null,null,null,2,"渡邉　優輔","(西尾)",null,null,null,null,null,null,null,null,null,null,null,null,null,null,null,null,null,"ｂｙｅ",12]
[null,null,null,null,null,null,null,"１",null,null,null,null,null,null,null,null,null,null,null,null,"３"]
[null,null,null,3,"神谷　衣織","(岡崎東海)",null,null,null,"２５",null,null,null,null,null,null,null,null,"２７",null,null,null,"大橋　一吹","(西尾)",13]
[]
[null,null,null,4,"宝木大晃","(一色)",null,null,null,null,null,null,null,null,null,null,null,null,null,null,null,null,"秋山　安慶","(吉良)",14]
[null,null,null,null,null,null,null,null,"１０",null,null,null,null,null,null,null,null,null,null,"１４"]
[null,null,null,5,"伊藤　栄太","(矢作)",null,null,null,null,null,null,null,null,null,null,null,null,null,null,null,null,"福士　幸矢","(高岡)",15]
[null,null,null,null,null,null,null,null,null,null,"３３",null,null,null,null,null,null,"３４"]
[null,null,null,6,"リズキ　アブディラ","(西尾)",null,null,null,null,null,null,null,null,null,null,null,null,null,null,null,null,"杉浦　智貴","(西尾)",16]
[null,null,null,null,null,null,null,null,"１１",null,null,null,null,null,null,null,null,null,null,"１５"]
[null,null,null,7,"榊原　和也","(碧南南)",null,null,null,null,null,null,null,null,null,null,null,null,null,null,null,null,"高木　健汰","(竜南)",17]
[]
[null,null,null,8,"稲垣　太星","(矢作)",null,null,null,"２６",null,null,null,null,null,null,null,null,"２８",null,null,null,"尾島　心","(吉良)",18]
[null,null,null,null,null,null,null,"２",null,null,null,null,null,null,null,null,null,null,null,null,"４"]
[null,null,null,9,null,"ｂｙｅ",null,null,null,null,null,null,null,null,null,null,null,null,null,null,null,null,"梅田　蒼真","(高岡)",19]
[null,null,null,null,null,null,null,null,"１２",null,null,null,null,null,null,null,null,null,null,"１６"]
[null,null,null,10,"深谷　晴斗","(吉良)",null,null,null,null,null,null,null,null,null,null,null,null,null,null,null,null,"森山　旺人","(矢作)",20]
[null,null,null,null,null,null,null,null,null,null,null,""]

{"sheet":"66","index":12,"n_rows":24,"n_cols":25,"rows_kept":24,"cut":false,"hidden":false,"merged":[[22,2,23,2],[22,3,23,3],[22,4,23,4],[22,5,23,5],[22,6,23,6],[20,2,21,2],[20,3,21,3],[20,4,21,4],[20,5,21,5],[20,6,21,6],[18,21,19,21],[18,22,19,22],[18,23,19,23],[18,24,19,24],[22,21,23,21],[22,22,23,22],[20,21,21,21],[22,23,23,23],[22,24,23,24],[20,22,21,22],[20,23,21,23],[20,24,21,24],[18,2,19,2],[18,3,19,3],[18,4,19,4],[18,5,19,5],[18,6,19,6],[14,23,15,23],[14,24,15,24],[16,2,17,2],[16,3,17,3],[16,4,17,4],[16,5,17,5],[16,6,17,6],[16,21,17,21],[16,22,17,22],[16,23,17,23],[16,24,17,24],[12,22,13,22],[12,23,13,23],[12,24,13,24],[14,2,15,2],[14,3,15,3],[14,4,15,4],[14,5,15,5],[14,6,15,6],[14,21,15,21],[14,22,15,22],[12,2,13,2],[12,3,13,3],[12,4,13,4],[12,5,13,5],[12,6,13,6],[12,21,13,21],[10,22,11,22],[10,23,11,23],[10,24,11,24],[8,2,9,2],[8,3,9,3],[8,4,9,4],[8,5,9,5],[10,2,11,2],[10,3,11,3],[10,5,11,5],[10,6,11,6],[10,21,11,21],[8,6,9,6],[4,21,5,21],[4,22,5,22],[4,23,5,23],[4,24,5,24],[6,21,7,21],[6,22,7,22],[6,23,7,23],[6,24,7,24],[8,21,9,21],[8,22,9,22],[8,23,9,23],[8,24,9,24],[6,2,7,2],[6,3,7,3],[6,4,7,4],[6,5,7,5],[6,6,7,6],[3,10,3,17],[4,2,5,2],[4,3,5,3],[4,4,5,4],[4,5,5,5],[4,6,5,6]]}
[null,null,null,null,null,null,null,null,null,null,null,null,null,null,null,null,null,null,null,null,null,null,null,null,"西三河中学校強化選手選考会"]
[null,null,null,null,null,null,null,null,null,null,null,null,null,null,null,null,null,null,null,null,null,null,null,null,"平成３０年1１月１０日"]
[null,null,null,null,null,null,null,null,null,null,null,null,null,null,null,null,null,null,null,null,null,null,null,null,"刈谷市武道館"]
[null,null,null,"男子６６ｋｇ級",null,null,null,null,null,null,"第３試合会場"]
[null,null,null,1,"竹市　裕亮","(岡崎東海)",null,null,null,null,null,null,null,null,null,null,null,null,null,null,null,null,"下地　海斗","(高岡)",11]
[null,null,null,null,null,null,null,null,"１７",null,null,null,null,null,null,null,null,null,null,"２１"]
[null,null,null,2,"黒柳　桜介","(矢作北)",null,null,null,null,null,null,null,null,null,null,null,null,null,null,null,null,null,"ｂｙｅ",12]
[null,null,null,null,null,null,null,"５",null,null,null,null,null,null,null,null,null,null,null,null,"７"]
[null,null,null,3,"鈴木　隆雅","(三好丘)",null,null,null,"２９",null,null,null,null,null,null,null,null,"３１",null,null,null,"青山　祐介","(甲山)",13]
[]
[null,null,null,4,null,"ｂｙｅ",null,null,null,null,null,null,null,null,null,null,null,null,null,null,null,null,"園内　龍斗","(矢作)",14]
[null,null,null,null,null,null,null,null,"１８",null,null,null,null,null,null,null,null,null,null,"２２"]
[null,null,null,5,"黒田　隼望","(甲山)",null,null,null,null,null,null,null,null,null,null,null,null,null,null,null,null,"髙原　丈豊","(高浜)",15]
[null,null,null,null,null,null,null,null,null,null,"３５",null,null,null,null,null,null,"３６"]
[null,null,null,6,"山田　寛大","(高岡)",null,null,null,null,null,null,null,null,null,null,null,null,null,null,null,null,"石橋　直斗","(竜海)",16]
[null,null,null,null,null,null,null,null,"１９",null,null,null,null,null,null,null,null,null,null,"２３"]
[null,null,null,7,"宮浦　周平","(竜南)",null,null,null,null,null,null,null,null,null,null,null,null,null,null,null,null,"糟谷　勇輝","(三好丘)",17]
[]
[null,null,null,8,"滝口　陽太","(高浜南)",null,null,null,"３０",null,null,null,null,null,null,null,null,"３２",null,null,null,"玉木　颯","(明祥)",18]
[null,null,null,null,null,null,null,"６",null,null,null,null,null,null,null,null,null,null,null,null,"８"]
[null,null,null,9,"中村　優義","(矢作)",null,null,null,null,null,null,null,null,null,null,null,null,null,null,null,null,"松平　凌空","(美川)",19]
[null,null,null,null,null,null,null,null,"２０",null,null,null,null,null,null,null,null,null,null,"２４"]
[null,null,null,10,"斎藤　滉正","(吉良)",null,null,null,null,null,null,null,null,null,null,null,null,null,null,null,null,"中島　福丸","(碧南南)",20]
[null,null,null,null,null,null,null,null,null,null,null,""]

{"sheet":"73","index":13,"n_rows":24,"n_cols":25,"rows_kept":24,"cut":false,"hidden":false,"merged":[[22,2,23,2],[22,3,23,3],[22,4,23,4],[22,5,23,5],[22,6,23,6],[20,21,21,21],[20,22,21,22],[20,23,21,23],[20,24,21,24],[22,22,23,22],[22,23,23,23],[22,24,23,24],[22,21,23,21],[20,2,21,2],[20,3,21,3],[20,4,21,4],[20,5,21,5],[20,6,21,6],[16,23,17,23],[16,24,17,24],[18,2,19,2],[18,3,19,3],[18,4,19,4],[18,5,19,5],[18,6,19,6],[18,21,19,21],[18,22,19,22],[18,23,19,23],[18,24,19,24],[16,21,17,21],[16,22,17,22],[14,2,15,2],[14,3,15,3],[14,4,15,4],[14,5,15,5],[14,6,15,6],[16,2,17,2],[16,3,17,3],[16,4,17,4],[16,5,17,5],[16,6,17,6],[12,21,13,21],[12,22,13,22],[12,23,13,23],[12,24,13,24],[14,22,15,22],[14,23,15,23],[14,24,15,24],[14,21,15,21],[12,2,13,2],[12,3,13,3],[12,4,13,4],[12,5,13,5],[12,6,13,6],[8,24,9,24],[10,2,11,2],[10,3,11,3],[10,4,11,4],[10,5,11,5],[10,6,11,6],[10,21,11,21],[10,22,11,22],[10,23,11,23],[10,24,11,24],[8,2,9,2],[8,3,9,3],[8,4,9,4],[8,5,9,5],[8,6,9,6],[4,21,5,21],[4,22,5,22],[4,23,5,23],[8,21,9,21],[8,22,9,22],[8,23,9,23],[4,24,5,24],[6,2,7,2],[6,3,7,3],[6,4,7,4],[6,5,7,5],[6,6,7,6],[6,21,7,21],[6,22,7,22],[6,23,7,23],[6,24,7,24],[3,10,3,17],[4,2,5,2],[4,3,5,3],[4,4,5,4],[4,5,5,5],[4,6,5,6]]}
[null,null,null,null,null,null,null,null,null,null,null,null,null,null,null,null,null,null,null,null,null,null,null,null,"西三河中学校強化選手選考会"]
[null,null,null,null,null,null,null,null,null,null,null,null,null,null,null,null,null,null,null,null,null,null,null,null,"平成３０年1１月１０日"]
[null,null,null,null,null,null,null,null,null,null,null,null,null,null,null,null,null,null,null,null,null,null,null,null,"刈谷市武道館"]
[null,null,null,"男子７３ｋｇ級",null,null,null,null,null,null,"第４試合会場"]
[null,null,null,1,"山田結大","(一色)",null,null,null,null,null,null,null,null,null,null,null,null,null,null,null,null,"清水　康行","(碧南南)",11]
[null,null,null,null,null,null,null,null,"５",null,null,null,null,null,null,null,null,null,null,"９"]
[null,null,null,2,"杉浦　颯亮","(西尾)",null,null,null,null,null,null,null,null,null,null,null,null,null,null,null,null,"ドゥイレザ","(一色)",12]
[null,null,null,null,null,null,null,"１",null,null,null,null,null,null,null,null,null,null,null,null,"３"]
[null,null,null,3,"堤　トシユキ","(碧南南)",null,null,null,"１７",null,null,null,null,null,null,null,null,"１９",null,null,null,"大村　碧起","(竜南)",13]
[]
[null,null,null,4,"久野　寛大","(吉良)",null,null,null,null,null,null,null,null,null,null,null,null,null,null,null,null,"久米　瞬矢","(竜南)",14]
[null,null,null,null,null,null,null,null,"６",null,null,null,null,null,null,null,null,null,null,"１０"]
[null,null,null,5,"真田　範斗","(猿投台)",null,null,null,null,null,null,null,null,null,null,null,null,null,null,null,null,"望月 ジョナタン","(平坂)",15]
[null,null,null,null,null,null,null,null,null,null,"２７",null,null,null,null,null,null,"２８"]
[null,null,null,6,"原口　國斗","(矢作)",null,null,null,null,null,null,null,null,null,null,null,null,null,null,null,null,"松田　桜育","(高浜南)",16]
[null,null,null,null,null,null,null,null,"７",null,null,null,null,null,null,null,null,null,null,"１１"]
[null,null,null,7,"鞭目龍助","(一色)",null,null,null,null,null,null,null,null,null,null,null,null,null,null,null,null,"星野　　舜","(吉良)",17]
[]
[null,null,null,8,"宮﨑　竣也","(平坂)",null,null,null,"１８",null,null,null,null,null,null,null,null,"２０",null,null,null,"杜燚輝","(一色)",18]
[null,null,null,null,null,null,null,"２",null,null,null,null,null,null,null,null,null,null,null,null,"４"]
[null,null,null,9,"杉浦　珠樹","（新川）",null,null,null,null,null,null,null,null,null,null,null,null,null,null,null,null,"尾﨑　那音","(三好丘)",19]
[null,null,null,null,null,null,null,null,"８",null,null,null,null,null,null,null,null,null,null,"１２"]
[null,null,null,10,"山本　直輝","(みよし北)",null,null,null,null,null,null,null,null,null,null,null,null,null,null,null,null,"西村　賢","(甲山)",20]
[null,null,null,null,null,null,null,null,null,null,null,""]

{"sheet":"81","index":14,"n_rows":10,"n_cols":25,"rows_kept":10,"cut":false,"hidden":false,"merged":[[6,2,7,2],[6,3,7,3],[6,4,7,4],[6,5,7,5],[6,6,7,6],[8,2,9,2],[8,3,9,3],[8,4,9,4],[8,5,9,5],[8,6,9,6],[4,21,5,21],[4,22,5,22],[4,23,5,23],[8,23,9,23],[4,24,5,24],[6,21,7,21],[8,24,9,24],[6,22,7,22],[6,23,7,23],[6,24,7,24],[8,21,9,21],[8,22,9,22],[3,9,3,18],[4,2,5,2],[4,3,5,3],[4,4,5,4],[4,5,5,5],[4,6,5,6]]}
[null,null,null,null,null,null,null,null,null,null,null,null,null,null,null,null,null,null,null,null,null,null,null,null,"西三河中学校強化選手選考会"]
[null,null,null,null,null,null,null,null,null,null,null,null,null,null,null,null,null,null,null,null,null,null,null,null,"平成３０年1１月１０日"]
[null,null,null,null,null,null,null,null,null,null,null,null,null,null,null,null,null,null,null,null,null,null,null,null,"刈谷市武道館"]
[null,null,null,"男子８１ｋｇ級",null,null,null,null,null,"第４試合会場"]
[null,null,null,1,"上田　紘平","(みよし北)",null,null,null,null,null,null,null,null,null,null,null,null,null,null,null,null,"中根　嵩人","(西尾)",4]
[null,null,null,null,null,null,null,null,"２９",null,null,null,null,null,null,null,null,null,null,null,"２６"]
[null,null,null,2,"平本　瑠唯","(高岡)",null,null,null,null,null,null,null,null,null,null,null,null,null,"３０",null,null,null,"ｂｙｅ",5]
[null,null,null,null,null,null,null,"２５",null,null,null,null,null,null,null,null,null,null,null,""]
[null,null,null,3,"難波　佑斗","(竜南)",null,null,null,null,null,null,null,null,null,null,null,null,null,null,null,null,"杉浦　真那斗","(高浜南)",6]
[null,null,null,null,null,null,null,null,null,""]

{"sheet":"90","index":15,"n_rows":9,"n_cols":13,"rows_kept":9,"cut":false,"hidden":false,"merged":[[6,2,7,2],[6,3,7,3],[6,4,7,4],[6,5,7,5],[6,6,7,6],[8,2,9,2],[8,3,9,3],[8,4,9,4],[8,5,9,5],[8,6,9,6],[3,7,3,8],[4,2,5,2],[4,3,5,3],[4,4,5,4],[4,5,5,5],[4,6,5,6]]}
[null,null,null,null,null,null,null,null,null,null,null,null,"西三河中学校強化選手選考会"]
[null,null,null,null,null,null,null,null,null,null,null,null,"平成３０年1１月１０日"]
[null,null,null,null,null,null,null,null,null,null,null,null,"刈谷市武道館"]
[null,null,null,"男子９０ｋｇ級",null,null,null,"第４試合会場"]
[null,null,null,1,"湧田  カシオ","(平坂)",1]
[null,null,null,null,null,null,null,null,"33"]
[null,null,null,2,null,"ｂｙｅ",3]
[]
[null,null,null,3,"原口　ユリ","(三好丘)",2]

{"sheet":"+90","index":16,"n_rows":16,"n_cols":25,"rows_kept":16,"cut":false,"hidden":false,"merged":[[14,2,15,2],[14,3,15,3],[14,4,15,4],[14,5,15,5],[14,6,15,6],[12,21,13,21],[12,22,13,22],[12,23,13,23],[12,24,13,24],[14,22,15,22],[14,23,15,23],[14,24,15,24],[14,21,15,21],[12,2,13,2],[12,3,13,3],[12,4,13,4],[12,5,13,5],[12,6,13,6],[8,24,9,24],[10,2,11,2],[10,3,11,3],[10,4,11,4],[10,5,11,5],[10,6,11,6],[10,21,11,21],[10,22,11,22],[10,23,11,23],[10,24,11,24],[8,2,9,2],[8,3,9,3],[8,4,9,4],[8,5,9,5],[8,6,9,6],[4,21,5,21],[4,22,5,22],[4,23,5,23],[8,21,9,21],[8,22,9,22],[8,23,9,23],[4,24,5,24],[6,2,7,2],[6,3,7,3],[6,4,7,4],[6,5,7,5],[6,6,7,6],[6,21,7,21],[6,22,7,22],[6,23,7,23],[6,24,7,24],[3,9,3,18],[4,2,5,2],[4,3,5,3],[4,4,5,4],[4,5,5,5],[4,6,5,6]]}
[null,null,null,null,null,null,null,null,null,null,null,null,null,null,null,null,null,null,null,null,null,null,null,null,"西三河中学校強化選手選考会"]
[null,null,null,null,null,null,null,null,null,null,null,null,null,null,null,null,null,null,null,null,null,null,null,null,"平成３０年1１月１０日"]
[null,null,null,null,null,null,null,null,null,null,null,null,null,null,null,null,null,null,null,null,null,null,null,null,"刈谷市武道館"]
[null,null,null,"男子９０ｋｇ超級",null,null,null,null,null,"第４試合会場"]
[null,null,null,1,"大迫　ルーカス","(西尾)",null,null,null,null,null,null,null,null,null,null,null,null,null,null,null,null,"山口　倫","(吉良)",7]
[null,null,null,null,null,null,null,null,"２１",null,null,null,null,null,null,null,null,null,null,"２３"]
[null,null,null,2,"早川　耕太","(依佐美)",null,null,null,null,null,null,null,null,null,null,null,null,null,null,null,null,"鳥居　凌太","(平坂)",8]
[null,null,null,null,null,null,null,"１３",null,null,null,null,null,null,null,null,null,null,null,null,"１５"]
[null,null,null,3,"平野　魁紀","(矢作)",null,null,null,null,null,null,null,null,null,null,null,null,null,null,null,null,"小島　快斗","(竜北)",9]
[null,null,null,null,null,null,null,null,null,"３１",null,null,null,null,null,null,null,null,"３２"]
[null,null,null,4,"中島　悠希","(高浜南)",null,null,null,null,null,null,null,null,null,null,null,null,null,null,null,null,"小田 竜基","(高浜)",10]
[null,null,null,null,null,null,null,"１４",null,null,null,null,null,null,null,null,null,null,null,null,"１６"]
[null,null,null,5,null,"ｂｙｅ",null,null,null,null,null,null,null,null,null,null,null,null,null,null,null,null,"望月　健太","(一色)",11]
[null,null,null,null,null,null,null,null,"２２",null,null,null,null,null,null,null,null,null,null,"２４"]
[null,null,null,6,"池田　崇光","(一色)",null,null,null,null,null,null,null,null,null,null,null,null,null,null,null,null,"福田　暁","(矢作)",12]
[null,null,null,null,null,null,null,null,null,null,""]

{"sheet":"結果入力","index":17,"n_rows":1105,"n_cols":13,"rows_kept":1105,"cut":false,"hidden":false,"merged":[]}
[]
[]
[]
[null,null,null,null,null,null,"未処理",{"$f":"COUNTA(G6:G6000)","v":1100}]
[null,"階級","試合番号","勝ち","内容",null,{"$f":"H5/H4","v":0.18363636363636363},{"$f":"COUNTIF(G6:G6000,\"処理済\")","v":202},{"$f":"COUNTIF(E:E,\"<4\")/H5","v":0.9455445544554455},null,null,null,"全階級シートの名前を入力"]
[1,"50","1",{"$f":"IF(F6=\"\",\"\",IF(ROUNDDOWN(F6/10,0)=1,\"赤\",IF(ROUNDDOWN(F6/10,0)=2,\"白\")))","v":"白"},{"$f":"IF(F6=\"\",\"\",MOD(F6,10))","v":1},21,"処理済",null,null,null,null,null,"40"]
[1,"50","2",{"$f":"IF(F7=\"\",\"\",IF(ROUNDDOWN(F7/10,0)=1,\"赤\",IF(ROUNDDOWN(F7/10,0)=2,\"白\")))","v":"赤"},{"$f":"IF(F7=\"\",\"\",MOD(F7,10))","v":1},11,"処理済",null,null,null,null,null,"44"]
[1,"50","3","白",1,21,"処理済",null,null,null,null,null,"48"]
[1,"50","4","白",1,21,"処理済",null,null,null,null,null,"52"]
[1,"50","5","白",1,21,"処理済",null,null,null,null,null,"57"]
[1,"50","6","白",1,21,"処理済",null,null,null,null,null,"63"]
[1,"50","7","赤",1,11,"処理済",null,null,null,null,null,"70"]
[1,"50","8","白",1,21,"処理済",null,null,null,null,null,"+70"]
[1,"50","9","赤",1,11,"処理済",null,null,null,null,null,"50"]
[1,"50","10","赤",1,11,"処理済",null,null,null,null,null,"55"]
[1,"50","11","赤",4,14,"処理済",null,null,null,null,null,"60"]
[1,"50","12","白",2,22,"処理済",null,null,null,null,null,"66"]
[1,"50","13","赤",1,11,"処理済",null,null,null,null,null,"73"]
[1,"50","14","赤",1,11,"処理済",null,null,null,null,null,"81"]
[1,"50","15","白",1,21,"処理済",null,null,null,null,null,"90"]
[1,"50","16","赤",2,12,"処理済",null,null,null,null,null,"+90"]
[1,"50","17","赤",1,11,"処理済"]
[1,"50","18","赤",1,11,"処理済"]
[1,"50","19","赤",1,11,"処理済"]
[1,"50","20","赤",2,12,"処理済"]
[1,"50","21","赤",1,11,"処理済"]
[1,"50","22","白",1,21,"処理済"]
[1,"50","23","白",1,21,"処理済"]
[1,"50","24","白",1,21,"処理済"]
[1,"50","25","白",1,21,"処理済"]
[1,"50","26","白",1,21,"処理済"]
[1,"50","27","赤",1,11,"処理済"]
[1,"50","28","赤",1,11,"処理済"]
[1,"50","29","赤",1,11,"処理済"]
[1,"50","30","白",1,21,"処理済"]
[1,"50","31","赤",1,11,"処理済"]
[1,"50","32","白",1,21,"処理済"]
[1,"50","33","赤",1,11,"処理済"]
[1,"50","34","白",2,22,"処理済"]
[1,"50","35","赤",1,11,"処理済"]
[1,"50","36","白",4,24,"処理済"]
[1,"50","37","赤",1,11,"処理済"]
[1,"50","38","白",1,21,"処理済"]
[1,"50","39","赤",1,11,"処理済"]
[1,"50","40","白",1,21,"処理済"]
[1,"50","41","赤",1,11,"処理済"]
[1,"50","42","赤",1,11,"処理済"]
[1,"50","43","赤",1,11,"処理済"]
[1,"50","44","白",1,21,"処理済"]
[1,"50","45","赤",1,11,"処理済"]
[1,"50","46","白",1,21,"処理済"]
[1,"55","１","赤",1,11,"処理済"]
[1,"55","２","白",1,21,"処理済"]
[1,"55","３","赤",1,11,"処理済"]
[1,"55","４","白",1,21,"処理済"]
[1,"55","５","赤",1,11,"処理済"]
[1,"55","６","赤",1,11,"処理済"]
[1,"55","７","白",1,21,"処理済"]
[1,"55","８","白",1,21,"処理済"]
[1,"55","９","赤",1,11,"処理済"]
[1,"55","１０","白",1,21,"処理済"]
[1,"55","１１","白",1,21,"処理済"]
[1,"55","１２","白",1,21,"処理済"]
[1,"55","１３","赤",1,11,"処理済"]
[1,"55","１４","赤",1,11,"処理済"]
[1,"55","１５","赤",1,11,"処理済"]
[1,"55","１６","白",1,21,"処理済"]
[1,"55","１７","赤",1,11,"処理済"]
[1,"55","１８","赤",1,11,"処理済"]
[1,"55","１９","白",2,22,"処理済"]
[1,"55","２０",{"$f":"IF(F71=\"\",\"\",IF(ROUNDDOWN(F71/10,0)=1,\"赤\",IF(ROUNDDOWN(F71/10,0)=2,\"白\")))","v":"白"},{"$f":"IF(F71=\"\",\"\",MOD(F71,10))","v":1},21,"処理済"]
[1,"55","２１","赤",1,11,"処理済"]
[1,"55","２２","白",1,21,"処理済"]
[1,"55","２３","赤",2,12,"処理済"]
[1,"55","２４","白",1,21,"処理済"]
[1,"55","２５","赤",1,11,"処理済"]
[1,"55","２６","白",1,21,"処理済"]
[1,"55","２７","赤",1,11,"処理済"]
[1,"55","２８","白",4,24,"処理済"]
[1,"55","２９","白",4,24,"処理済"]
[1,"55","３０","赤",1,11,"処理済"]
[1,"60","１","白",1,21,"処理済"]
[1,"60","２","赤",1,11,"処理済"]
[1,"60","３","白",1,21,"処理済"]
[1,"60","４","赤",1,11,"処理済"]
[1,"60","９","赤",1,11,"処理済"]
[1,"60","１０","白",1,21,"処理済"]
[1,"60","１１","赤",1,11,"処理済"]
[1,"60","１２","白",1,21,"処理済"]
[1,"60","１３","赤",1,11,"処理済"]
[1,"60","１４","白",1,21,"処理済"]
[1,"60","１５","赤",2,12,"処理済"]
[1,"60","１６","白",1,21,"処理済"]
[1,"60","２５","赤",1,11,"処理済"]
[1,"60","２６","赤",1,11,"処理済"]
[1,"60","２７","白",1,21,"処理済"]
[1,"60","２８","白",1,21,"処理済"]
[1,"60","３３","赤",1,11,"処理済"]
[1,"60","３４","白",1,21,"処理済"]
[1,"66","５","赤",1,11,"処理済"]
[1,"66","６","赤",1,11,"処理済"]
[1,"66","７","白",1,21,"処理済"]
[1,"66","８",{"$f":"IF(F103=\"\",\"\",IF(ROUNDDOWN(F103/10,0)=1,\"赤\",IF(ROUNDDOWN(F103/10,0)=2,\"白\")))","v":"白"},1,21,"処理済"]
[1,"66","１７","赤",1,11,"処理済"]
[1,"66","１８","白",1,21,"処理済"]
[1,"66","１９","赤",2,12,"処理済"]
[1,"66","２０","白",1,21,"処理済"]
[1,"66","２１","赤",1,11,"処理済"]
[1,"66","２２","白",1,21,"処理済"]
[1,"66","２３","白",1,21,"処理済"]
[1,"66","２４","白",2,22,"処理済"]
[1,"66","２９","赤",1,11,"処理済"]
[1,"66","３０","赤",6,16,"処理済"]
[1,"66","３１","赤",1,11,"処理済"]
[1,"66","３２","赤",1,11,"処理済"]
[1,"66","３５","赤",1,11,"処理済"]
[1,"66","３６","赤",1,11,"処理済"]
[1,"73","１","赤",1,11,"処理済"]
[1,"73","２","白",1,21,"処理済"]
[1,"73","３","赤",1,11,"処理済"]
[1,"73","４","白",1,21,"処理済"]
[1,"73","５","赤",1,11,"処理済"]
[1,"73","６","赤",1,11,"処理済"]
[1,"73","７","白",1,21,"処理済"]
[1,"73","８","白",6,26,"処理済"]
[1,"73","９","赤",1,11,"処理済"]
[1,"73","１０","白",1,21,"処理済"]
[1,"73","１１","白",1,21,"処理済"]
[1,"73","１２","白",1,21,"処理済"]
[1,"73","１７","赤",1,11,"処理済"]
[1,"73","１８","白",1,21,"処理済"]
[1,"73","１９","白",1,21,"処理済"]
[1,"73","２０","白",1,21,"処理済"]
[1,"73","２７","赤",1,11,"処理済"]
[1,"73","２８",{"$f":"IF(F135=\"\",\"\",IF(ROUNDDOWN(F135/10,0)=1,\"赤\",IF(ROUNDDOWN(F135/10,0)=2,\"白\")))","v":"白"},{"$f":"IF(F135=\"\",\"\",MOD(F135,10))","v":5},25,"処理済"]
[1,"81","２５","赤",1,11,"処理済"]
[1,"81","２６","赤",1,11,"処理済"]
[1,"81","２９","赤",1,11,"処理済"]
[1,"81","３０","赤",1,11,"処理済"]
[1,"+90","１３","白",1,21,"処理済"]
[1,"+90","１４","赤",1,11,"処理済"]
[1,"+90","１５","白",1,21,"処理済"]
[1,"+90","１６","白",1,21,"処理済"]
[1,"+90","２１","赤",1,11,"処理済"]
[1,"+90","２２","白",1,21,"処理済"]
[1,"+90","２３","赤",1,11,"処理済"]
[1,"+90","２４","白",1,21,"処理済"]
[1,"+90","３１","赤",1,11,"処理済"]
[1,"+90","３２","赤",1,11,"処理済"]
[1,"90","33","赤",{"$f":"IF(F150=\"\",\"\",MOD(F150,10))","v":1},11,"処理済"]
[2,"40","1","赤",1,11,"処理済"]
[2,"40","10","赤",1,11,"処理済"]
[2,"40","11","赤",1,11,"処理済"]
[2,"40","12","赤",1,11,"処理済"]
[2,"40","13","白",1,21,"処理済"]
[2,"40","22","赤",1,11,"処理済"]
[2,"40","23","白",1,21,"処理済"]
[2,"44","１","白",2,22,"処理済"]
[2,"44","2","白",1,21,"処理済"]
[2,"44","3","白",1,21,"処理済"]
[2,"44","4","赤",1,11,"処理済"]
[2,"44","11","赤",1,11,"処理済"]
[2,"44","12","赤",1,11,"処理済"]
[2,"44","13","赤",1,11,"処理済"]
[2,"44","14","白",1,21,"処理済"]
[2,"44","23","赤",1,11,"処理済"]
[2,"44","24","白",1,21,"処理済"]
[2,"48","2","赤",2,12,"処理済"]
[2,"48","3","赤",1,11,"処理済"]
[2,"48","4","白",1,21,"処理済"]
[2,"48","5","赤",1,11,"処理済"]
[2,"48","6","赤",1,11,"処理済"]
[2,"48","7","白",1,21,"処理済"]
[2,"48","14","赤",1,11,"処理済"]
[2,"48","15","白",1,21,"処理済"]
[2,"48","16","赤",1,11,"処理済"]
[2,"48","17","白",1,21,"処理済"]
[2,"48","24","赤",1,11,"処理済"]
[2,"48","25","白",6,26,"処理済"]
[2,"52","５","白",1,21,"処理済"]
[2,"52","6","赤",1,11,"処理済"]
[2,"52","7","赤",1,11,"処理済"]
[2,"52","8","赤",2,12,"処理済"]
[2,"52","9","白",1,21,"処理済"]
[2,"52","10","赤",1,11,"処理済"]
[2,"52","11","白",1,21,"処理済"]
[2,"52","15","赤",1,11,"処理済"]
[2,"52","16","赤",1,11,"処理済"]
[2,"52","17","赤",2,12,"処理済"]
[2,"52","18","白",1,21,"処理済"]
[2,"52","25","白",2,22,"処理済"]
[2,"52","26","白",1,21,"処理済"]
[2,"57","8","赤",1,11,"処理済"]
[2,"57","9","白",1,21,"処理済"]
[2,"57","18","赤",1,11,"処理済"]
[2,"57","19","赤",4,14,"処理済"]
[2,"57","20","赤",1,11,"処理済"]
[2,"57","21","白",1,21,"処理済"]
[2,"57","26",{"$f":"IF(F199=\"\",\"\",IF(ROUNDDOWN(F199/10,0)=1,\"赤\",IF(ROUNDDOWN(F199/10,0)=2,\"白\")))","v":"赤"},{"$f":"IF(F199=\"\",\"\",MOD(F199,10))","v":1},11,"処理済"]
[2,"57","27","白",1,21,"処理済"]
[2,"63","19","赤",1,11,"処理済"]
[2,"63","20","白",1,21,"処理済"]
[2,"63","21","白",1,21,"処理済"]
[2,"63","22","白",4,24,"処理済"]
[2,"63","27","赤",1,11,"処理済"]
[2,"63","28","白",1,21,"処理済"]
[2,"+70","29","","",null,"処理済"]
[null,null,null,"","",null,"未処理"]
[null,null,null,"","",null,"未処理"]
[null,null,null,"","",null,"未処理"]
[null,null,null,"","",null,"未処理"]
[null,null,null,"","",null,"未処理"]
[null,null,null,"","",null,"未処理"]
[null,null,null,"","",null,"未処理"]
[null,null,null,"","",null,"未処理"]
[null,null,null,"","",null,"未処理"]
[null,null,null,"","",null,"未処理"]
[null,null,null,"","",null,"未処理"]
[null,null,null,"","",null,"未処理"]
[null,null,null,"","",null,"未処理"]
[null,null,null,"","",null,"未処理"]
[null,null,null,"","",null,"未処理"]
[null,null,null,"","",null,"未処理"]
[null,null,null,"","",null,"未処理"]
[null,null,null,"","",null,"未処理"]
[null,null,null,"","",null,"未処理"]
[null,null,null,"","",null,"未処理"]
[null,null,null,"","",null,"未処理"]
[null,null,null,"","",null,"未処理"]
[null,null,null,"","",null,"未処理"]
[null,null,null,"","",null,"未処理"]
[null,null,null,"","",null,"未処理"]
[null,null,null,"","",null,"未処理"]
[null,null,null,"","",null,"未処理"]
[null,null,null,"","",null,"未処理"]
[null,null,null,"","",null,"未処理"]
[null,null,null,"","",null,"未処理"]
[null,null,null,"","",null,"未処理"]
[null,null,null,"","",null,"未処理"]
[null,null,null,"","",null,"未処理"]
[null,null,null,"","",null,"未処理"]
[null,null,null,"","",null,"未処理"]
[null,null,null,"","",null,"未処理"]
[null,null,null,"","",null,"未処理"]
[null,null,null,"","",null,"未処理"]
[null,null,null,"","",null,"未処理"]
[null,null,null,"","",null,"未処理"]
[null,null,null,"","",null,"未処理"]
[null,null,null,"","",null,"未処理"]
[null,null,null,"","",null,"未処理"]
[null,null,null,"","",null,"未処理"]
[null,null,null,"","",null,"未処理"]
[null,null,null,"","",null,"未処理"]
[null,null,null,"","",null,"未処理"]
[null,null,null,"","",null,"未処理"]
[null,null,null,"","",null,"未処理"]
[null,null,null,"","",null,"未処理"]
[null,null,null,"","",null,"未処理"]
[null,null,null,"","",null,"未処理"]
[null,null,null,"","",null,"未処理"]
[null,null,null,"","",null,"未処理"]
[null,null,null,"","",null,"未処理"]
[null,null,null,{"$f":"IF(F263=\"\",\"\",IF(ROUNDDOWN(F263/10,0)=1,\"赤\",IF(ROUNDDOWN(F263/10,0)=2,\"白\")))","v":""},{"$f":"IF(F263=\"\",\"\",MOD(F263,10))","v":""},null,"未処理"]
[null,null,null,"","",null,"未処理"]
[null,null,null,"","",null,"未処理"]
[null,null,null,"","",null,"未処理"]
[null,null,null,"","",null,"未処理"]
[null,null,null,"","",null,"未処理"]
[null,null,null,"","",null,"未処理"]
[null,null,null,"","",null,"未処理"]
[null,null,null,"","",null,"未処理"]
[null,null,null,"","",null,"未処理"]
[null,null,null,"","",null,"未処理"]
[null,null,null,"","",null,"未処理"]
[null,null,null,"","",null,"未処理"]
[null,null,null,"","",null,"未処理"]
[null,null,null,"","",null,"未処理"]
[null,null,null,"","",null,"未処理"]
[null,null,null,"","",null,"未処理"]
[null,null,null,"","",null,"未処理"]
[null,null,null,"","",null,"未処理"]
[null,null,null,"","",null,"未処理"]
[null,null,null,"","",null,"未処理"]
[null,null,null,"","",null,"未処理"]
[null,null,null,"","",null,"未処理"]
[null,null,null,"","",null,"未処理"]
[null,null,null,"","",null,"未処理"]
[null,null,null,"","",null,"未処理"]
[null,null,null,"","",null,"未処理"]
[null,null,null,"","",null,"未処理"]
[null,null,null,"","",null,"未処理"]
[null,null,null,"","",null,"未処理"]
[null,null,null,"","",null,"未処理"]
[null,null,null,"","",null,"未処理"]
[null,null,null,"","",null,"未処理"]
[null,null,null,"","",null,"未処理"]
[null,null,null,"","",null,"未処理"]
[null,null,null,"","",null,"未処理"]
[null,null,null,"","",null,"未処理"]
[null,null,null,"","",null,"未処理"]
[null,null,null,"","",null,"未処理"]
[null,null,null,"","",null,"未処理"]
[null,null,null,"","",null,"未処理"]
[null,null,null,"","",null,"未処理"]
[null,null,null,"","",null,"未処理"]
[null,null,null,"","",null,"未処理"]
[null,null,null,"","",null,"未処理"]
[null,null,null,"","",null,"未処理"]
[null,null,null,"","",null,"未処理"]
[null,null,null,"","",null,"未処理"]
[null,null,null,"","",null,"未処理"]
[null,null,null,"","",null,"未処理"]
[null,null,null,"","",null,"未処理"]
[null,null,null,"","",null,"未処理"]
[null,null,null,"","",null,"未処理"]
[null,null,null,"","",null,"未処理"]
[null,null,null,"","",null,"未処理"]
[null,null,null,"","",null,"未処理"]
[null,null,null,"","",null,"未処理"]
[null,null,null,"","",null,"未処理"]
[null,null,null,"","",null,"未処理"]
[null,null,null,"","",null,"未処理"]
[null,null,null,"","",null,"未処理"]
[null,null,null,"","",null,"未処理"]
[null,null,null,"","",null,"未処理"]
[null,null,null,"","",null,"未処理"]
[null,null,null,{"$f":"IF(F327=\"\",\"\",IF(ROUNDDOWN(F327/10,0)=1,\"赤\",IF(ROUNDDOWN(F327/10,0)=2,\"白\")))","v":""},{"$f":"IF(F327=\"\",\"\",MOD(F327,10))","v":""},null,"未処理"]
[null,null,null,"","",null,"未処理"]
[null,null,null,"","",null,"未処理"]
[null,null,null,"","",null,"未処理"]
[null,null,null,"","",null,"未処理"]
[null,null,null,"","",null,"未処理"]
[null,null,null,"","",null,"未処理"]
[null,null,null,"","",null,"未処理"]
[null,null,null,"","",null,"未処理"]
[null,null,null,"","",null,"未処理"]
[null,null,null,"","",null,"未処理"]
[null,null,null,"","",null,"未処理"]
[null,null,null,"","",null,"未処理"]
[null,null,null,"","",null,"未処理"]
[null,null,null,"","",null,"未処理"]
[null,null,null,"","",null,"未処理"]
[null,null,null,"","",null,"未処理"]
[null,null,null,"","",null,"未処理"]
[null,null,null,"","",null,"未処理"]
[null,null,null,"","",null,"未処理"]
[null,null,null,"","",null,"未処理"]
[null,null,null,"","",null,"未処理"]
[null,null,null,"","",null,"未処理"]
[null,null,null,"","",null,"未処理"]
[null,null,null,"","",null,"未処理"]
[null,null,null,"","",null,"未処理"]
[null,null,null,"","",null,"未処理"]
[null,null,null,"","",null,"未処理"]
[null,null,null,"","",null,"未処理"]
[null,null,null,"","",null,"未処理"]
[null,null,null,"","",null,"未処理"]
[null,null,null,"","",null,"未処理"]
[null,null,null,"","",null,"未処理"]
[null,null,null,"","",null,"未処理"]
[null,null,null,"","",null,"未処理"]
[null,null,null,"","",null,"未処理"]
[null,null,null,"","",null,"未処理"]
[null,null,null,"","",null,"未処理"]
[null,null,null,"","",null,"未処理"]
[null,null,null,"","",null,"未処理"]
[null,null,null,"","",null,"未処理"]
[null,null,null,"","",null,"未処理"]
[null,null,null,"","",null,"未処理"]
[null,null,null,"","",null,"未処理"]
[null,null,null,"","",null,"未処理"]
[null,null,null,"","",null,"未処理"]
[null,null,null,"","",null,"未処理"]
[null,null,null,"","",null,"未処理"]
[null,null,null,"","",null,"未処理"]
[null,null,null,"","",null,"未処理"]
[null,null,null,"","",null,"未処理"]
[null,null,null,"","",null,"未処理"]
[null,null,null,"","",null,"未処理"]
[null,null,null,"","",null,"未処理"]
[null,null,null,"","",null,"未処理"]
[null,null,null,"","",null,"未処理"]
[null,null,null,"","",null,"未処理"]
[null,null,null,"","",null,"未処理"]
[null,null,null,"","",null,"未処理"]
[null,null,null,"","",null,"未処理"]
[null,null,null,"","",null,"未処理"]
[null,null,null,"","",null,"未処理"]
[null,null,null,"","",null,"未処理"]
[null,null,null,"","",null,"未処理"]
[null,null,null,{"$f":"IF(F391=\"\",\"\",IF(ROUNDDOWN(F391/10,0)=1,\"赤\",IF(ROUNDDOWN(F391/10,0)=2,\"白\")))","v":""},{"$f":"IF(F391=\"\",\"\",MOD(F391,10))","v":""},null,"未処理"]
[null,null,null,"","",null,"未処理"]
[null,null,null,"","",null,"未処理"]
[null,null,null,"","",null,"未処理"]
[null,null,null,"","",null,"未処理"]
[null,null,null,"","",null,"未処理"]
[null,null,null,"","",null,"未処理"]
[null,null,null,"","",null,"未処理"]
[null,null,null,"","",null,"未処理"]
[null,null,null,"","",null,"未処理"]
[null,null,null,"","",null,"未処理"]
[null,null,null,"","",null,"未処理"]
[null,null,null,"","",null,"未処理"]
[null,null,null,"","",null,"未処理"]
[null,null,null,"","",null,"未処理"]
[null,null,null,"","",null,"未処理"]
[null,null,null,"","",null,"未処理"]
[null,null,null,"","",null,"未処理"]
[null,null,null,"","",null,"未処理"]
[null,null,null,"","",null,"未処理"]
[null,null,null,"","",null,"未処理"]
[null,null,null,"","",null,"未処理"]
[null,null,null,"","",null,"未処理"]
[null,null,null,"","",null,"未処理"]
[null,null,null,"","",null,"未処理"]
[null,null,null,"","",null,"未処理"]
[null,null,null,"","",null,"未処理"]
[null,null,null,"","",null,"未処理"]
[null,null,null,"","",null,"未処理"]
[null,null,null,"","",null,"未処理"]
[null,null,null,"","",null,"未処理"]
[null,null,null,"","",null,"未処理"]
[null,null,null,"","",null,"未処理"]
[null,null,null,"","",null,"未処理"]
[null,null,null,"","",null,"未処理"]
[null,null,null,"","",null,"未処理"]
[null,null,null,"","",null,"未処理"]
[null,null,null,"","",null,"未処理"]
[null,null,null,"","",null,"未処理"]
[null,null,null,"","",null,"未処理"]
[null,null,null,"","",null,"未処理"]
[null,null,null,"","",null,"未処理"]
[null,null,null,"","",null,"未処理"]
[null,null,null,"","",null,"未処理"]
[null,null,null,"","",null,"未処理"]
[null,null,null,"","",null,"未処理"]
[null,null,null,"","",null,"未処理"]
[null,null,null,"","",null,"未処理"]
[null,null,null,"","",null,"未処理"]
[null,null,null,"","",null,"未処理"]
[null,null,null,"","",null,"未処理"]
[null,null,null,"","",null,"未処理"]
[null,null,null,"","",null,"未処理"]
[null,null,null,"","",null,"未処理"]
[null,null,null,"","",null,"未処理"]
[null,null,null,"","",null,"未処理"]
[null,null,null,"","",null,"未処理"]
[null,null,null,"","",null,"未処理"]
[null,null,null,"","",null,"未処理"]
[null,null,null,"","",null,"未処理"]
[null,null,null,"","",null,"未処理"]
[null,null,null,"","",null,"未処理"]
[null,null,null,"","",null,"未処理"]
[null,null,null,"","",null,"未処理"]
[null,null,null,{"$f":"IF(F455=\"\",\"\",IF(ROUNDDOWN(F455/10,0)=1,\"赤\",IF(ROUNDDOWN(F455/10,0)=2,\"白\")))","v":""},{"$f":"IF(F455=\"\",\"\",MOD(F455,10))","v":""},null,"未処理"]
[null,null,null,"","",null,"未処理"]
[null,null,null,"","",null,"未処理"]
[null,null,null,"","",null,"未処理"]
[null,null,null,"","",null,"未処理"]
[null,null,null,"","",null,"未処理"]
[null,null,null,"","",null,"未処理"]
[null,null,null,"","",null,"未処理"]
[null,null,null,"","",null,"未処理"]
[null,null,null,"","",null,"未処理"]
[null,null,null,"","",null,"未処理"]
[null,null,null,"","",null,"未処理"]
[null,null,null,"","",null,"未処理"]
[null,null,null,"","",null,"未処理"]
[null,null,null,"","",null,"未処理"]
[null,null,null,"","",null,"未処理"]
[null,null,null,"","",null,"未処理"]
[null,null,null,"","",null,"未処理"]
[null,null,null,"","",null,"未処理"]
[null,null,null,"","",null,"未処理"]
[null,null,null,"","",null,"未処理"]
[null,null,null,"","",null,"未処理"]
[null,null,null,"","",null,"未処理"]
[null,null,null,"","",null,"未処理"]
[null,null,null,"","",null,"未処理"]
[null,null,null,"","",null,"未処理"]
[null,null,null,"","",null,"未処理"]
[null,null,null,"","",null,"未処理"]
[null,null,null,"","",null,"未処理"]
[null,null,null,"","",null,"未処理"]
[null,null,null,"","",null,"未処理"]
[null,null,null,"","",null,"未処理"]
[null,null,null,"","",null,"未処理"]
[null,null,null,"","",null,"未処理"]
[null,null,null,"","",null,"未処理"]
[null,null,null,"","",null,"未処理"]
[null,null,null,"","",null,"未処理"]
[null,null,null,"","",null,"未処理"]
[null,null,null,"","",null,"未処理"]
[null,null,null,"","",null,"未処理"]
[null,null,null,"","",null,"未処理"]
[null,null,null,"","",null,"未処理"]
[null,null,null,"","",null,"未処理"]
[null,null,null,"","",null,"未処理"]
[null,null,null,"","",null,"未処理"]
[null,null,null,"","",null,"未処理"]
[null,null,null,"","",null,"未処理"]
[null,null,null,"","",null,"未処理"]
[null,null,null,"","",null,"未処理"]
[null,null,null,"","",null,"未処理"]
[null,null,null,"","",null,"未処理"]
[null,null,null,"","",null,"未処理"]
[null,null,null,"","",null,"未処理"]
[null,null,null,"","",null,"未処理"]
[null,null,null,"","",null,"未処理"]
[null,null,null,"","",null,"未処理"]
[null,null,null,"","",null,"未処理"]
[null,null,null,"","",null,"未処理"]
[null,null,null,"","",null,"未処理"]
[null,null,null,"","",null,"未処理"]
[null,null,null,"","",null,"未処理"]
[null,null,null,"","",null,"未処理"]
[null,null,null,"","",null,"未処理"]
[null,null,null,"","",null,"未処理"]
[null,null,null,{"$f":"IF(F519=\"\",\"\",IF(ROUNDDOWN(F519/10,0)=1,\"赤\",IF(ROUNDDOWN(F519/10,0)=2,\"白\")))","v":""},{"$f":"IF(F519=\"\",\"\",MOD(F519,10))","v":""},null,"未処理"]
[null,null,null,"","",null,"未処理"]
[null,null,null,"","",null,"未処理"]
[null,null,null,"","",null,"未処理"]
[null,null,null,"","",null,"未処理"]
[null,null,null,"","",null,"未処理"]
[null,null,null,"","",null,"未処理"]
[null,null,null,"","",null,"未処理"]
[null,null,null,"","",null,"未処理"]
[null,null,null,"","",null,"未処理"]
[null,null,null,"","",null,"未処理"]
[null,null,null,"","",null,"未処理"]
[null,null,null,"","",null,"未処理"]
[null,null,null,"","",null,"未処理",null,{"$f":"COUNTIF(E:E,1)","v":177}]
[null,null,null,"","",null,"未処理",null,{"$f":"COUNTIF(E:E,2)","v":14}]
[null,null,null,"","",null,"未処理"]
[null,null,null,"","",null,"未処理"]
[null,null,null,"","",null,"未処理"]
[null,null,null,"","",null,"未処理"]
[null,null,null,"","",null,"未処理"]
[null,null,null,"","",null,"未処理"]
[null,null,null,"","",null,"未処理"]
[null,null,null,"","",null,"未処理"]
[null,null,null,"","",null,"未処理"]
[null,null,null,"","",null,"未処理"]
[null,null,null,"","",null,"未処理"]
[null,null,null,"","",null,"未処理"]
[null,null,null,"","",null,"未処理"]
[null,null,null,"","",null,"未処理"]
[null,null,null,"","",null,"未処理"]
[null,null,null,"","",null,"未処理"]
[null,null,null,"","",null,"未処理"]
[null,null,null,"","",null,"未処理"]
[null,null,null,"","",null,"未処理"]
[null,null,null,"","",null,"未処理"]
[null,null,null,"","",null,"未処理"]
[null,null,null,"","",null,"未処理"]
[null,null,null,"","",null,"未処理"]
[null,null,null,"","",null,"未処理"]
[null,null,null,"","",null,"未処理"]
[null,null,null,"","",null,"未処理"]
[null,null,null,"","",null,"未処理"]
[null,null,null,"","",null,"未処理"]
[null,null,null,"","",null,"未処理"]
[null,null,null,"","",null,"未処理"]
[null,null,null,"","",null,"未処理"]
[null,null,null,"","",null,"未処理"]
[null,null,null,"","",null,"未処理"]
[null,null,null,"","",null,"未処理"]
[null,null,null,"","",null,"未処理"]
[null,null,null,"","",null,"未処理"]
[null,null,null,"","",null,"未処理"]
[null,null,null,"","",null,"未処理"]
[null,null,null,"","",null,"未処理"]
[null,null,null,"","",null,"未処理"]
[null,null,null,"","",null,"未処理"]
[null,null,null,"","",null,"未処理"]
[null,null,null,"","",null,"未処理"]
[null,null,null,"","",null,"未処理"]
[null,null,null,"","",null,"未処理"]
[null,null,null,"","",null,"未処理"]
[null,null,null,"","",null,"未処理"]
[null,null,null,"","",null,"未処理"]
[null,null,null,"","",null,"未処理"]
[null,null,null,{"$f":"IF(F583=\"\",\"\",IF(ROUNDDOWN(F583/10,0)=1,\"赤\",IF(ROUNDDOWN(F583/10,0)=2,\"白\")))","v":""},{"$f":"IF(F583=\"\",\"\",MOD(F583,10))","v":""},null,"未処理"]
[null,null,null,"","",null,"未処理"]
[null,null,null,"","",null,"未処理"]
[null,null,null,"","",null,"未処理"]
[null,null,null,"","",null,"未処理"]
[null,null,null,"","",null,"未処理"]
[null,null,null,"","",null,"未処理"]
[null,null,null,"","",null,"未処理"]
[null,null,null,"","",null,"未処理"]
[null,null,null,"","",null,"未処理"]
[null,null,null,"","",null,"未処理"]
[null,null,null,"","",null,"未処理"]
[null,null,null,"","",null,"未処理"]
[null,null,null,"","",null,"未処理"]
[null,null,null,"","",null,"未処理"]
[null,null,null,"","",null,"未処理"]
[null,null,null,"","",null,"未処理"]
[null,null,null,"","",null,"未処理"]
[null,null,null,"","",null,"未処理"]
[null,null,null,"","",null,"未処理"]
[null,null,null,"","",null,"未処理"]
[null,null,null,"","",null,"未処理"]
[null,null,null,"","",null,"未処理"]
[null,null,null,"","",null,"未処理"]
[null,null,null,"","",null,"未処理"]
[null,null,null,"","",null,"未処理"]
[null,null,null,"","",null,"未処理"]
[null,null,null,"","",null,"未処理"]
[null,null,null,"","",null,"未処理"]
[null,null,null,"","",null,"未処理"]
[null,null,null,"","",null,"未処理"]
[null,null,null,"","",null,"未処理"]
[null,null,null,"","",null,"未処理"]
[null,null,null,"","",null,"未処理"]
[null,null,null,"","",null,"未処理"]
[null,null,null,"","",null,"未処理"]
[null,null,null,"","",null,"未処理"]
[null,null,null,"","",null,"未処理"]
[null,null,null,"","",null,"未処理"]
[null,null,null,"","",null,"未処理"]
[null,null,null,"","",null,"未処理"]
[null,null,null,"","",null,"未処理"]
[null,null,null,"","",null,"未処理"]
[null,null,null,"","",null,"未処理"]
[null,null,null,"","",null,"未処理"]
[null,null,null,"","",null,"未処理"]
[null,null,null,"","",null,"未処理"]
[null,null,null,"","",null,"未処理"]
[null,null,null,"","",null,"未処理"]
[null,null,null,"","",null,"未処理"]
[null,null,null,"","",null,"未処理"]
[null,null,null,"","",null,"未処理"]
[null,null,null,"","",null,"未処理"]
[null,null,null,"","",null,"未処理"]
[null,null,null,"","",null,"未処理"]
[null,null,null,"","",null,"未処理"]
[null,null,null,"","",null,"未処理"]
[null,null,null,"","",null,"未処理"]
[null,null,null,"","",null,"未処理"]
[null,null,null,"","",null,"未処理"]
[null,null,null,"","",null,"未処理"]
[null,null,null,"","",null,"未処理"]
[null,null,null,"","",null,"未処理"]
[null,null,null,"","",null,"未処理"]
[null,null,null,{"$f":"IF(F647=\"\",\"\",IF(ROUNDDOWN(F647/10,0)=1,\"赤\",IF(ROUNDDOWN(F647/10,0)=2,\"白\")))","v":""},{"$f":"IF(F647=\"\",\"\",MOD(F647,10))","v":""},null,"未処理"]
[null,null,null,"","",null,"未処理"]
[null,null,null,"","",null,"未処理"]
[null,null,null,"","",null,"未処理"]
[null,null,null,"","",null,"未処理"]
[null,null,null,"","",null,"未処理"]
[null,null,null,"","",null,"未処理"]
[null,null,null,"","",null,"未処理"]
[null,null,null,"","",null,"未処理"]
[null,null,null,"","",null,"未処理"]
[null,null,null,"","",null,"未処理"]
[null,null,null,"","",null,"未処理"]
[null,null,null,"","",null,"未処理"]
[null,null,null,"","",null,"未処理"]
[null,null,null,"","",null,"未処理"]
[null,null,null,"","",null,"未処理"]
[null,null,null,"","",null,"未処理"]
[null,null,null,"","",null,"未処理"]
[null,null,null,"","",null,"未処理"]
[null,null,null,"","",null,"未処理"]
[null,null,null,"","",null,"未処理"]
[null,null,null,"","",null,"未処理"]
[null,null,null,"","",null,"未処理"]
[null,null,null,"","",null,"未処理"]
[null,null,null,"","",null,"未処理"]
[null,null,null,"","",null,"未処理"]
[null,null,null,"","",null,"未処理"]
[null,null,null,"","",null,"未処理"]
[null,null,null,"","",null,"未処理"]
[null,null,null,"","",null,"未処理"]
[null,null,null,"","",null,"未処理"]
[null,null,null,"","",null,"未処理"]
[null,null,null,"","",null,"未処理"]
[null,null,null,"","",null,"未処理"]
[null,null,null,"","",null,"未処理"]
[null,null,null,"","",null,"未処理"]
[null,null,null,"","",null,"未処理"]
[null,null,null,"","",null,"未処理"]
[null,null,null,"","",null,"未処理"]
[null,null,null,"","",null,"未処理"]
[null,null,null,"","",null,"未処理"]
[null,null,null,"","",null,"未処理"]
[null,null,null,"","",null,"未処理"]
[null,null,null,"","",null,"未処理"]
[null,null,null,"","",null,"未処理"]
[null,null,null,"","",null,"未処理"]
[null,null,null,"","",null,"未処理"]
[null,null,null,"","",null,"未処理"]
[null,null,null,"","",null,"未処理"]
[null,null,null,"","",null,"未処理"]
[null,null,null,"","",null,"未処理"]
[null,null,null,"","",null,"未処理"]
[null,null,null,"","",null,"未処理"]
[null,null,null,"","",null,"未処理"]
[null,null,null,"","",null,"未処理"]
[null,null,null,"","",null,"未処理"]
[null,null,null,"","",null,"未処理"]
[null,null,null,"","",null,"未処理"]
[null,null,null,"","",null,"未処理"]
[null,null,null,"","",null,"未処理"]
[null,null,null,"","",null,"未処理"]
[null,null,null,"","",null,"未処理"]
[null,null,null,"","",null,"未処理"]
[null,null,null,"","",null,"未処理"]
[null,null,null,{"$f":"IF(F711=\"\",\"\",IF(ROUNDDOWN(F711/10,0)=1,\"赤\",IF(ROUNDDOWN(F711/10,0)=2,\"白\")))","v":""},{"$f":"IF(F711=\"\",\"\",MOD(F711,10))","v":""},null,"未処理"]
[null,null,null,"","",null,"未処理"]
[null,null,null,"","",null,"未処理"]
[null,null,null,"","",null,"未処理"]
[null,null,null,"","",null,"未処理"]
[null,null,null,"","",null,"未処理"]
[null,null,null,"","",null,"未処理"]
[null,null,null,"","",null,"未処理"]
[null,null,null,"","",null,"未処理"]
[null,null,null,"","",null,"未処理"]
[null,null,null,"","",null,"未処理"]
[null,null,null,"","",null,"未処理"]
[null,null,null,"","",null,"未処理"]
[null,null,null,"","",null,"未処理"]
[null,null,null,"","",null,"未処理"]
[null,null,null,"","",null,"未処理"]
[null,null,null,"","",null,"未処理"]
[null,null,null,"","",null,"未処理"]
[null,null,null,"","",null,"未処理"]
[null,null,null,"","",null,"未処理"]
[null,null,null,"","",null,"未処理"]
[null,null,null,"","",null,"未処理"]
[null,null,null,"","",null,"未処理"]
[null,null,null,"","",null,"未処理"]
[null,null,null,"","",null,"未処理"]
[null,null,null,"","",null,"未処理"]
[null,null,null,"","",null,"未処理"]
[null,null,null,"","",null,"未処理"]
[null,null,null,"","",null,"未処理"]
[null,null,null,"","",null,"未処理"]
[null,null,null,"","",null,"未処理"]
[null,null,null,"","",null,"未処理"]
[null,null,null,"","",null,"未処理"]
[null,null,null,"","",null,"未処理"]
[null,null,null,"","",null,"未処理"]
[null,null,null,"","",null,"未処理"]
[null,null,null,"","",null,"未処理"]
[null,null,null,"","",null,"未処理"]
[null,null,null,"","",null,"未処理"]
[null,null,null,"","",null,"未処理"]
[null,null,null,"","",null,"未処理"]
[null,null,null,"","",null,"未処理"]
[null,null,null,"","",null,"未処理"]
[null,null,null,"","",null,"未処理"]
[null,null,null,"","",null,"未処理"]
[null,null,null,"","",null,"未処理"]
[null,null,null,"","",null,"未処理"]
[null,null,null,"","",null,"未処理"]
[null,null,null,"","",null,"未処理"]
[null,null,null,"","",null,"未処理"]
[null,null,null,"","",null,"未処理"]
[null,null,null,"","",null,"未処理"]
[null,null,null,"","",null,"未処理"]
[null,null,null,"","",null,"未処理"]
[null,null,null,"","",null,"未処理"]
[null,null,null,"","",null,"未処理"]
[null,null,null,"","",null,"未処理"]
[null,null,null,"","",null,"未処理"]
[null,null,null,"","",null,"未処理"]
[null,null,null,"","",null,"未処理"]
[null,null,null,"","",null,"未処理"]
[null,null,null,"","",null,"未処理"]
[null,null,null,"","",null,"未処理"]
[null,null,null,"","",null,"未処理"]
[null,null,null,{"$f":"IF(F775=\"\",\"\",IF(ROUNDDOWN(F775/10,0)=1,\"赤\",IF(ROUNDDOWN(F775/10,0)=2,\"白\")))","v":""},{"$f":"IF(F775=\"\",\"\",MOD(F775,10))","v":""},null,"未処理"]
[null,null,null,null,null,null,"未処理"]
[null,null,null,null,null,null,"未処理"]
[null,null,null,null,null,null,"未処理"]
[null,null,null,null,null,null,"未処理"]
[null,null,null,null,null,null,"未処理"]
[null,null,null,null,null,null,"未処理"]
[null,null,null,null,null,null,"未処理"]
[null,null,null,null,null,null,"未処理"]
[null,null,null,null,null,null,"未処理"]
[null,null,null,null,null,null,"未処理"]
[null,null,null,null,null,null,"未処理"]
[null,null,null,null,null,null,"未処理"]
[null,null,null,null,null,null,"未処理"]
[null,null,null,null,null,null,"未処理"]
[null,null,null,null,null,null,"未処理"]
[null,null,null,null,null,null,"未処理"]
[null,null,null,null,null,null,"未処理"]
[null,null,null,null,null,null,"未処理"]
[null,null,null,null,null,null,"未処理"]
[null,null,null,null,null,null,"未処理"]
[null,null,null,null,null,null,"未処理"]
[null,null,null,null,null,null,"未処理"]
[null,null,null,null,null,null,"未処理"]
[null,null,null,null,null,null,"未処理"]
[null,null,null,null,null,null,"未処理"]
[null,null,null,null,null,null,"未処理"]
[null,null,null,null,null,null,"未処理"]
[null,null,null,null,null,null,"未処理"]
[null,null,null,null,null,null,"未処理"]
[null,null,null,null,null,null,"未処理"]
[null,null,null,null,null,null,"未処理"]
[null,null,null,null,null,null,"未処理"]
[null,null,null,null,null,null,"未処理"]
[null,null,null,null,null,null,"未処理"]
[null,null,null,null,null,null,"未処理"]
[null,null,null,null,null,null,"未処理"]
[null,null,null,null,null,null,"未処理"]
[null,null,null,null,null,null,"未処理"]
[null,null,null,null,null,null,"未処理"]
[null,null,null,null,null,null,"未処理"]
[null,null,null,null,null,null,"未処理"]
[null,null,null,null,null,null,"未処理"]
[null,null,null,null,null,null,"未処理"]
[null,null,null,null,null,null,"未処理"]
[null,null,null,null,null,null,"未処理"]
[null,null,null,null,null,null,"未処理"]
[null,null,null,null,null,null,"未処理"]
[null,null,null,null,null,null,"未処理"]
[null,null,null,null,null,null,"未処理"]
[null,null,null,null,null,null,"未処理"]
[null,null,null,null,null,null,"未処理"]
[null,null,null,null,null,null,"未処理"]
[null,null,null,null,null,null,"未処理"]
[null,null,null,null,null,null,"未処理"]
[null,null,null,null,null,null,"未処理"]
[null,null,null,null,null,null,"未処理"]
[null,null,null,null,null,null,"未処理"]
[null,null,null,null,null,null,"未処理"]
[null,null,null,null,null,null,"未処理"]
[null,null,null,null,null,null,"未処理"]
[null,null,null,null,null,null,"未処理"]
[null,null,null,null,null,null,"未処理"]
[null,null,null,null,null,null,"未処理"]
[null,null,null,null,null,null,"未処理"]
[null,null,null,null,null,null,"未処理"]
[null,null,null,null,null,null,"未処理"]
[null,null,null,null,null,null,"未処理"]
[null,null,null,null,null,null,"未処理"]
[null,null,null,null,null,null,"未処理"]
[null,null,null,null,null,null,"未処理"]
[null,null,null,null,null,null,"未処理"]
[null,null,null,null,null,null,"未処理"]
[null,null,null,null,null,null,"未処理"]
[null,null,null,null,null,null,"未処理"]
[null,null,null,null,null,null,"未処理"]
[null,null,null,null,null,null,"未処理"]
[null,null,null,null,null,null,"未処理"]
[null,null,null,null,null,null,"未処理"]
[null,null,null,null,null,null,"未処理"]
[null,null,null,null,null,null,"未処理"]
[null,null,null,null,null,null,"未処理"]
[null,null,null,null,null,null,"未処理"]
[null,null,null,null,null,null,"未処理"]
[null,null,null,null,null,null,"未処理"]
[null,null,null,null,null,null,"未処理"]
[null,null,null,null,null,null,"未処理"]
[null,null,null,null,null,null,"未処理"]
[null,null,null,null,null,null,"未処理"]
[null,null,null,null,null,null,"未処理"]
[null,null,null,null,null,null,"未処理"]
[null,null,null,null,null,null,"未処理"]
[null,null,null,null,null,null,"未処理"]
[null,null,null,null,null,null,"未処理"]
[null,null,null,null,null,null,"未処理"]
[null,null,null,null,null,null,"未処理"]
[null,null,null,null,null,null,"未処理"]
[null,null,null,null,null,null,"未処理"]
[null,null,null,null,null,null,"未処理"]
[null,null,null,null,null,null,"未処理"]
[null,null,null,null,null,null,"未処理"]
[null,null,null,null,null,null,"未処理"]
[null,null,null,null,null,null,"未処理"]
[null,null,null,null,null,null,"未処理"]
[null,null,null,null,null,null,"未処理"]
[null,null,null,null,null,null,"未処理"]
[null,null,null,null,null,null,"未処理"]
[null,null,null,null,null,null,"未処理"]
[null,null,null,null,null,null,"未処理"]
[null,null,null,null,null,null,"未処理"]
[null,null,null,null,null,null,"未処理"]
[null,null,null,null,null,null,"未処理"]
[8,null,null,null,null,null,"未処理"]
[8,null,null,null,null,null,"未処理"]
[8,null,null,null,null,null,"未処理"]
[8,null,null,null,null,null,"未処理"]
[8,null,null,null,null,null,"未処理"]
[8,null,null,null,null,null,"未処理"]
[8,null,null,null,null,null,"未処理"]
[8,null,null,null,null,null,"未処理"]
[8,null,null,null,null,null,"未処理"]
[8,null,null,null,null,null,"未処理"]
[8,null,null,null,null,null,"未処理"]
[8,null,null,null,null,null,"未処理"]
[8,null,null,null,null,null,"未処理"]
[8,null,null,null,null,null,"未処理"]
[8,null,null,null,null,null,"未処理"]
[8,null,null,null,null,null,"未処理"]
[8,null,null,null,null,null,"未処理"]
[8,null,null,null,null,null,"未処理"]
[8,null,null,null,null,null,"未処理"]
[8,null,null,null,null,null,"未処理"]
[8,null,null,null,null,null,"未処理"]
[8,null,null,null,null,null,"未処理"]
[8,null,null,null,null,null,"未処理"]
[8,null,null,null,null,null,"未処理"]
[8,null,null,null,null,null,"未処理"]
[8,null,null,null,null,null,"未処理"]
[8,null,null,null,null,null,"未処理"]
[8,null,null,null,null,null,"未処理"]
[8,null,null,null,null,null,"未処理"]
[8,null,null,null,null,null,"未処理"]
[8,null,null,null,null,null,"未処理"]
[8,null,null,null,null,null,"未処理"]
[8,null,null,null,null,null,"未処理"]
[8,null,null,null,null,null,"未処理"]
[8,null,null,null,null,null,"未処理"]
[8,null,null,null,null,null,"未処理"]
[8,null,null,null,null,null,"未処理"]
[8,null,null,null,null,null,"未処理"]
[8,null,null,null,null,null,"未処理"]
[8,null,null,null,null,null,"未処理"]
[8,null,null,null,null,null,"未処理"]
[8,null,null,null,null,null,"未処理"]
[8,null,null,null,null,null,"未処理"]
[8,null,null,null,null,null,"未処理"]
[8,null,null,null,null,null,"未処理"]
[8,null,null,null,null,null,"未処理"]
[8,null,null,null,null,null,"未処理"]
[8,null,null,null,null,null,"未処理"]
[8,null,null,null,null,null,"未処理"]
[8,null,null,null,null,null,"未処理"]
[8,null,null,null,null,null,"未処理"]
[8,null,null,null,null,null,"未処理"]
[8,null,null,null,null,null,"未処理"]
[8,null,null,null,null,null,"未処理"]
[8,null,null,null,null,null,"未処理"]
[8,null,null,null,null,null,"未処理"]
[8,null,null,null,null,null,"未処理"]
[8,null,null,null,null,null,"未処理"]
[8,null,null,null,null,null,"未処理"]
[8,null,null,null,null,null,"未処理"]
[8,null,null,null,null,null,"未処理"]
[8,null,null,null,null,null,"未処理"]
[8,null,null,null,null,null,"未処理"]
[8,null,null,null,null,null,"未処理"]
[8,null,null,null,null,null,"未処理"]
[8,null,null,null,null,null,"未処理"]
[8,null,null,null,null,null,"未処理"]
[8,null,null,null,null,null,"未処理"]
[8,null,null,null,null,null,"未処理"]
[8,null,null,null,null,null,"未処理"]
[8,null,null,null,null,null,"未処理"]
[8,null,null,null,null,null,"未処理"]
[8,null,null,null,null,null,"未処理"]
[8,null,null,null,null,null,"未処理"]
[8,null,null,null,null,null,"未処理"]
[8,null,null,null,null,null,"未処理"]
[8,null,null,null,null,null,"未処理"]
[8,null,null,null,null,null,"未処理"]
[8,null,null,null,null,null,"未処理"]
[8,null,null,null,null,null,"未処理"]
[8,null,null,null,null,null,"未処理"]
[8,null,null,null,null,null,"未処理"]
[8,null,null,null,null,null,"未処理"]
[8,null,null,null,null,null,"未処理"]
[8,null,null,null,null,null,"未処理"]
[8,null,null,null,null,null,"未処理"]
[8,null,null,null,null,null,"未処理"]
[8,null,null,null,null,null,"未処理"]
[8,null,null,null,null,null,"未処理"]
[8,null,null,null,null,null,"未処理"]
[8,null,null,null,null,null,"未処理"]
[8,null,null,null,null,null,"未処理"]
[8,null,null,null,null,null,"未処理"]
[8,null,null,null,null,null,"未処理"]
[8,null,null,null,null,null,"未処理"]
[8,null,null,null,null,null,"未処理"]
[null,null,null,null,null,null,"未処理"]
[null,null,null,null,null,null,"未処理"]
[null,null,null,null,null,null,"未処理"]
[null,null,null,null,null,null,"未処理"]
[null,null,null,null,null,null,"未処理"]
[null,null,null,null,null,null,"未処理"]
[null,null,null,null,null,null,"未処理"]
[null,null,null,null,null,null,"未処理"]
[null,null,null,null,null,null,"未処理"]
[null,null,null,null,null,null,"未処理"]
[null,null,null,null,null,null,"未処理"]
[null,null,null,null,null,null,"未処理"]
[null,null,null,null,null,null,"未処理"]
[null,null,null,null,null,null,"未処理"]
[null,null,null,null,null,null,"未処理"]
[null,null,null,null,null,null,"未処理"]
[null,null,null,null,null,null,"未処理"]
[null,null,null,null,null,null,"未処理"]
[null,null,null,null,null,null,"未処理"]
[null,null,null,null,null,null,"未処理"]
[null,null,null,null,null,null,"未処理"]
[null,null,null,null,null,null,"未処理"]
[null,null,null,null,null,null,"未処理"]
[null,null,null,null,null,null,"未処理"]
[null,null,null,null,null,null,"未処理"]
[null,null,null,null,null,null,"未処理"]
[null,null,null,null,null,null,"未処理"]
[null,null,null,null,null,null,"未処理"]
[null,null,null,null,null,null,"未処理"]
[null,null,null,null,null,null,"未処理"]
[null,null,null,null,null,null,"未処理"]
[null,null,null,null,null,null,"未処理"]
[null,null,null,null,null,null,"未処理"]
[null,null,null,null,null,null,"未処理"]
[null,null,null,null,null,null,"未処理"]
[null,null,null,null,null,null,"未処理"]
[null,null,null,null,null,null,"未処理"]
[null,null,null,null,null,null,"未処理"]
[null,null,null,null,null,null,"未処理"]
[null,null,null,null,null,null,"未処理"]
[null,null,null,null,null,null,"未処理"]
[null,null,null,null,null,null,"未処理"]
[null,null,null,null,null,null,"未処理"]
[null,null,null,null,null,null,"未処理"]
[null,null,null,null,null,null,"未処理"]
[null,null,null,null,null,null,"未処理"]
[null,null,null,null,null,null,"未処理"]
[null,null,null,null,null,null,"未処理"]
[null,null,null,null,null,null,"未処理"]
[null,null,null,null,null,null,"未処理"]
[null,null,null,null,null,null,"未処理"]
[null,null,null,null,null,null,"未処理"]
[null,null,null,null,null,null,"未処理"]
[null,null,null,null,null,null,"未処理"]
[null,null,null,null,null,null,"未処理"]
[null,null,null,null,null,null,"未処理"]
[null,null,null,null,null,null,"未処理"]
[null,null,null,null,null,null,"未処理"]
[null,null,null,null,null,null,"未処理"]
[null,null,null,null,null,null,"未処理"]
[null,null,null,null,null,null,"未処理"]
[null,null,null,null,null,null,"未処理"]
[null,null,null,null,null,null,"未処理"]
[null,null,null,null,null,null,"未処理"]
[null,null,null,null,null,null,"未処理"]
[null,null,null,null,null,null,"未処理"]
[null,null,null,null,null,null,"未処理"]
[null,null,null,null,null,null,"未処理"]
[null,null,null,null,null,null,"未処理"]
[null,null,null,null,null,null,"未処理"]
[null,null,null,null,null,null,"未処理"]
[null,null,null,null,null,null,"未処理"]
[null,null,null,null,null,null,"未処理"]
[null,null,null,null,null,null,"未処理"]
[null,null,null,null,null,null,"未処理"]
[null,null,null,null,null,null,"未処理"]
[null,null,null,null,null,null,"未処理"]
[null,null,null,null,null,null,"未処理"]
[null,null,null,null,null,null,"未処理"]
[null,null,null,null,null,null,"未処理"]
[null,null,null,null,null,null,"未処理"]
[null,null,null,null,null,null,"未処理"]
[null,null,null,null,null,null,"未処理"]
[null,null,null,null,null,null,"未処理"]
[null,null,null,null,null,null,"未処理"]
[null,null,null,null,null,null,"未処理"]
[null,null,null,null,null,null,"未処理"]
[null,null,null,null,null,null,"未処理"]
[null,null,null,null,null,null,"未処理"]
[null,null,null,null,null,null,"未処理"]
[null,null,null,null,null,null,"未処理"]
[null,null,null,null,null,null,"未処理"]
[null,null,null,null,null,null,"未処理"]
[null,null,null,null,null,null,"未処理"]
[null,null,null,null,null,null,"未処理"]
[null,null,null,null,null,null,"未処理"]
[null,null,null,null,null,null,"未処理"]
[null,null,null,null,null,null,"未処理"]
[null,null,null,null,null,null,"未処理"]
[null,null,null,null,null,null,"未処理"]
[null,null,null,null,null,null,"未処理"]
[null,null,null,null,null,null,"未処理"]
[null,null,null,null,null,null,"未処理"]
[null,null,null,null,null,null,"未処理"]
[null,null,null,null,null,null,"未処理"]
[null,null,null,null,null,null,"未処理"]
[null,null,null,null,null,null,"未処理"]
[null,null,null,null,null,null,"未処理"]
[null,null,null,null,null,null,"未処理"]
[null,null,null,null,null,null,"未処理"]
[null,null,null,null,null,null,"未処理"]
[null,null,null,null,null,null,"未処理"]
[null,null,null,null,null,null,"未処理"]
[null,null,null,null,null,null,"未処理"]
[null,null,null,null,null,null,"未処理"]
[null,null,null,null,null,null,"未処理"]
[null,null,null,null,null,null,"未処理"]
[null,null,null,null,null,null,"未処理"]
[null,null,null,null,null,null,"未処理"]
[null,null,null,null,null,null,"未処理"]
[null,null,null,null,null,null,"未処理"]
[null,null,null,null,null,null,"未処理"]
[null,null,null,null,null,null,"未処理"]

{"sheet":"記号","index":18,"n_rows":0,"n_cols":0,"rows_kept":0,"cut":false,"hidden":false,"merged":[]}